Workbook

Sheet Grafici
T41: Regione | W41: Contagiati
S42: 21° | T42: =VLOOKUP(Grafici!W42,Statistiche!$B$1513:$C$1533,2,FALSE) -> Molise | W42: =IFERROR(SMALL(Statistiche!B$1513:B$1533,COUNTBLANK(Statistiche!$G$1513:G1513)),"") -> 296
S43: 20° | T43: =VLOOKUP(Grafici!W43,Statistiche!$B$1513:$C$1533,2,FALSE) -> Basilicata | W43: =IFERROR(SMALL(Statistiche!B$1513:B$1533,COUNTBLANK(Statistiche!$G$1513:G1514)),"") -> 366
S44: 19° | T44: =VLOOKUP(Grafici!W44,Statistiche!$B$1513:$C$1533,2,FALSE) -> Calabria | W44: =IFERROR(SMALL(Statistiche!B$1513:B$1533,COUNTBLANK(Statistiche!$G$1513:G1515)),"") -> 1096
S45: 18° | T45: =VLOOKUP(Grafici!W45,Statistiche!$B$1513:$C$1533,2,FALSE) -> Valle d'Aosta | W45: =IFERROR(SMALL(Statistiche!B$1513:B$1533,COUNTBLANK(Statistiche!$G$1513:G1516)),"") -> 1111
S46: 17° | T46: =VLOOKUP(Grafici!W46,Statistiche!$B$1513:$C$1533,2,FALSE) -> Sardegna | W46: =IFERROR(SMALL(Statistiche!B$1513:B$1533,COUNTBLANK(Statistiche!$G$1513:G1517)),"") -> 1283
S47: 16° | T47: =VLOOKUP(Grafici!W47,Statistiche!$B$1513:$C$1533,2,FALSE) -> Umbria | W47: =IFERROR(SMALL(Statistiche!B$1513:B$1533,COUNTBLANK(Statistiche!$G$1513:G1518)),"") -> 1370
S48: 15° | T48: =VLOOKUP(Grafici!W48,Statistiche!$B$1513:$C$1533,2,FALSE) -> P.A. Bolzano | W48: =IFERROR(SMALL(Statistiche!B$1513:B$1533,COUNTBLANK(Statistiche!$G$1513:G1519)),"") -> 2496
S49: 14° | T49: =VLOOKUP(Grafici!W49,Statistiche!$B$1513:$C$1533,2,FALSE) -> Abruzzo | W49: =IFERROR(SMALL(Statistiche!B$1513:B$1533,COUNTBLANK(Statistiche!$G$1513:G1520)),"") -> 2874
S50: 13° | T50: =VLOOKUP(Grafici!W50,Statistiche!$B$1513:$C$1533,2,FALSE) -> Friuli Venezia Giulia | W50: =IFERROR(SMALL(Statistiche!B$1513:B$1533,COUNTBLANK(Statistiche!$G$1513:G1521)),"") -> 2977
S51: 12° | T51: =VLOOKUP(Grafici!W51,Statistiche!$B$1513:$C$1533,2,FALSE) -> Sicilia | W51: =IFERROR(SMALL(Statistiche!B$1513:B$1533,COUNTBLANK(Statistiche!$G$1513:G1522)),"") -> 3085
S52: 11° | T52: =VLOOKUP(Grafici!W52,Statistiche!$B$1513:$C$1533,2,FALSE) -> Puglia | W52: =IFERROR(SMALL(Statistiche!B$1513:B$1533,COUNTBLANK(Statistiche!$G$1513:G1523)),"") -> 3958
S53: 10° | T53: =VLOOKUP(Grafici!W53,Statistiche!$B$1513:$C$1533,2,FALSE) -> P.A. Trento | W53: =IFERROR(SMALL(Statistiche!B$1513:B$1533,COUNTBLANK(Statistiche!$G$1513:G1524)),"") -> 3995
S54: 9° | T54: =VLOOKUP(Grafici!W54,Statistiche!$B$1513:$C$1533,2,FALSE) -> Campania | W54: =IFERROR(SMALL(Statistiche!B$1513:B$1533,COUNTBLANK(Statistiche!$G$1513:G1525)),"") -> 4349
S55: 8° | T55: =VLOOKUP(Grafici!W55,Statistiche!$B$1513:$C$1533,2,FALSE) -> Marche | W55: =IFERROR(SMALL(Statistiche!B$1513:B$1533,COUNTBLANK(Statistiche!$G$1513:G1526)),"") -> 6127
S56: 7° | T56: =VLOOKUP(Grafici!W56,Statistiche!$B$1513:$C$1533,2,FALSE) -> Lazio | W56: =IFERROR(SMALL(Statistiche!B$1513:B$1533,COUNTBLANK(Statistiche!$G$1513:G1527)),"") -> 6392
S57: 6° | T57: =VLOOKUP(Grafici!W57,Statistiche!$B$1513:$C$1533,2,FALSE) -> Liguria | W57: =IFERROR(SMALL(Statistiche!B$1513:B$1533,COUNTBLANK(Statistiche!$G$1513:G1528)),"") -> 7642
S58: 5° | T58: =VLOOKUP(Grafici!W58,Statistiche!$B$1513:$C$1533,2,FALSE) -> Toscana | W58: =IFERROR(SMALL(Statistiche!B$1513:B$1533,COUNTBLANK(Statistiche!$G$1513:G1529)),"") -> 9179
S59: 4° | T59: =VLOOKUP(Grafici!W59,Statistiche!$B$1513:$C$1533,2,FALSE) -> Veneto | W59: =IFERROR(SMALL(Statistiche!B$1513:B$1533,COUNTBLANK(Statistiche!$G$1513:G1530)),"") -> 17579
S60: 3° | T60: =VLOOKUP(Grafici!W60,Statistiche!$B$1513:$C$1533,2,FALSE) -> Emilia Romagna | W60: =IFERROR(SMALL(Statistiche!B$1513:B$1533,COUNTBLANK(Statistiche!$G$1513:G1531)),"") -> 24662
S61: 2° | T61: =VLOOKUP(Grafici!W61,Statistiche!$B$1513:$C$1533,2,FALSE) -> Piemonte | W61: =IFERROR(SMALL(Statistiche!B$1513:B$1533,COUNTBLANK(Statistiche!$G$1513:G1532)),"") -> 25098
S62: 1° | T62: =VLOOKUP(Grafici!W62,Statistiche!$B$1513:$C$1533,2,FALSE) -> Lombardia | W62: =IFERROR(SMALL(Statistiche!B$1513:B$1533,COUNTBLANK(Statistiche!$G$1513:G1533)),"") -> 73479
V63: Tot. | W63: =SUM(W42:W62) -> 199414

Sheet Statistiche
A1: Data | B1: Codice | C1: Regione | D1: Ricoverati | E1: Terap. Intens. | F1: Ospedalizzati | G1: Quarantena | H1: Positivi | I1: + Positivi | J1: Nuovi | K1: Guariti | L1: Deceduti | M1: Totale | N1: Tamponi | O1: Testati | R1: x 2 | T1: % su Tot. | U1: + Nuovi | V1: + Guariti | W1: + Deceduti | X1: + Totali | Y1: + Tamponi | Z1: % Positivi | AA1: % Guariti | AB1: % Deceduti | AC1: P. Stimati | AD1: % Morti
A2: 2020-02-24T18:00:00 | B2: 1 | C2: Piemonte | D2: 2 | E2: 0 | F2: 2 | G2: 1 | H2: 3 | I2: 0 | J2: 3 | K2: 0 | L2: 0 | M2: 3 | N2: 141 | P2: =M2 -> 3 | R2: =M2 -> 3 | T2: =M2*100/M1547 -> 1.310043668 | Z2: =IF(M2=0,0,H2/M2) -> 1 | AA2: =IF(M2=0,0,K2/M2) -> 0 | AB2: =IF(M2=0,0,L2/M2) -> 0 | AC2: =L2*100/B$1537 -> 0 | AD2: =IF(M2=0,0,L2/M2) -> 0
A3: 2020-02-25T18:00:00 | B3: 1 | C3: Piemonte | D3: 2 | E3: 0 | F3: 2 | G3: 1 | H3: 3 | I3: 0 | J3: 0 | K3: 0 | L3: 0 | M3: 3 | N3: 141 | P3: =IF(Q3="x2",M3,P2) -> 3 | Q3: =IF(M3>P2*2,"x2",P2) -> 3 | R3: =IF(Q3="x2",M3,"") ->  | T3: =M3*100/M1548 -> 0.9316770186 | U3: =IF(J3-J2=0,"",J3-J2) -> -3 | V3: =IF(K3-K2=0,"",K3-K2) ->  | W3: =IF(L3-L2=0,"",L3-L2) ->  | X3: =IF(M3-M2=0,"",M3-M2) ->  | Y3: =IF(N3-N2=0,"",N3-N2) ->  | Z3: 1 | AA3: 0 | AB3: 0 | AC3: =L3*100/B$1537 -> 0 | AD3: 0
A4: 2020-02-26T18:00:00 | B4: 1 | C4: Piemonte | D4: 2 | E4: 0 | F4: 2 | G4: 1 | H4: 3 | I4: 0 | J4: 0 | K4: 0 | L4: 0 | M4: 3 | N4: 156 | P4: 3 | Q4: 3 | T4: =M4*100/M1549 -> 0.75 | Y4: 15 | Z4: 1 | AA4: 0 | AB4: 0 | AC4: =L4*100/B$1537 -> 0 | AD4: 0
A5: 2020-02-27T18:00:00 | B5: 1 | C5: Piemonte | D5: 2 | E5: 0 | F5: 2 | G5: 0 | H5: 2 | I5: -1 | J5: -1 | K5: 0 | L5: 0 | M5: 2 | N5: 156 | P5: 3 | Q5: 3 | T5: =M5*100/M1550 -> 0.3076923077 | U5: -1 | X5: -1 | Z5: 1 | AA5: 0 | AB5: 0 | AC5: =L5*100/B$1537 -> 0 | AD5: 0
A6: 2020-02-28T18:00:00 | B6: 1 | C6: Piemonte | D6: 7 | E6: 0 | F6: 7 | G6: 4 | H6: 11 | I6: 9 | J6: 9 | K6: 0 | L6: 0 | M6: 11 | N6: 227 | P6: 11 | Q6: x2 | R6: 11 | T6: =M6*100/M1551 -> 1.238738739 | U6: 10 | X6: 9 | Y6: 71 | Z6: 1 | AA6: 0 | AB6: 0 | AC6: =L6*100/B$1537 -> 0 | AD6: 0
A7: 2020-02-29T17:00:00 | B7: 1 | C7: Piemonte | D7: 7 | E7: 0 | F7: 7 | G7: 4 | H7: 11 | I7: 0 | J7: 0 | K7: 0 | L7: 0 | M7: 11 | N7: 308 | P7: 11 | Q7: 11 | T7: =M7*100/M1552 -> 0.975177305 | U7: -9 | Y7: 81 | Z7: 1 | AA7: 0 | AB7: 0 | AC7: =L7*100/B$1537 -> 0 | AD7: 0
A8: 2020-03-01T17:00:00 | B8: 1 | C8: Piemonte | D8: 11 | E8: 2 | F8: 13 | G8: 36 | H8: 49 | I8: 38 | J8: 38 | K8: 0 | L8: 0 | M8: 49 | N8: 362 | P8: 49 | Q8: x2 | R8: 49 | T8: =M8*100/M1553 -> 2.892561983 | U8: 38 | X8: 38 | Y8: 54 | Z8: 1 | AA8: 0 | AB8: 0 | AC8: =L8*100/B$1537 -> 0 | AD8: 0
A9: 2020-03-02T18:00:00 | B9: 1 | C9: Piemonte | D9: 12 | E9: 2 | F9: 14 | G9: 37 | H9: 51 | I9: 2 | J9: 2 | K9: 0 | L9: 0 | M9: 51 | N9: 434 | P9: 49 | Q9: 49 | T9: =M9*100/M1554 -> 2.504911591 | U9: -36 | X9: 2 | Y9: 72 | Z9: 1 | AA9: 0 | AB9: 0 | AC9: =L9*100/B$1537 -> 0 | AD9: 0
A10: 2020-03-03T18:00:00 | B10: 1 | C10: Piemonte | D10: 13 | E10: 3 | F10: 16 | G10: 40 | H10: 56 | I10: 5 | J10: 5 | K10: 0 | L10: 0 | M10: 56 | N10: 458 | P10: 49 | Q10: 49 | T10: =M10*100/M1555 -> 2.238209432 | U10: 3 | X10: 5 | Y10: 24 | Z10: 1 | AA10: 0 | AB10: 0 | AC10: =L10*100/B$1537 -> 0 | AD10: 0
A11: 2020-03-04T17:00:00 | B11: 1 | C11: Piemonte | D11: 26 | E11: 13 | F11: 39 | G11: 43 | H11: 82 | I11: 26 | J11: 26 | K11: 0 | L11: 0 | M11: 82 | N11: 543 | P11: 49 | Q11: 49 | T11: =M11*100/M1556 -> 2.65458077 | U11: 21 | X11: 26 | Y11: 85 | Z11: 1 | AA11: 0 | AB11: 0 | AC11: =L11*100/B$1537 -> 0 | AD11: 0
A12: 2020-03-05T17:00:00 | B12: 1 | C12: Piemonte | D12: 43 | E12: 17 | F12: 60 | G12: 46 | H12: 106 | I12: 24 | J12: 24 | K12: 0 | L12: 2 | M12: 108 | N12: 543 | P12: 108 | Q12: x2 | R12: 108 | T12: =M12*100/M1557 -> 2.799377916 | U12: -2 | W12: 2 | X12: 26 | Z12: 0.9814814815 | AA12: 0 | AB12: 0.01851851852 | AC12: =L12*100/B$1537 -> 70.67137809 | AD12: 0.01851851852
A13: 2020-03-06T17:00:00 | B13: 1 | C13: Piemonte | D13: 57 | E13: 30 | F13: 87 | G13: 52 | H13: 139 | I13: 33 | J13: 33 | K13: 0 | L13: 4 | M13: 143 | N13: 793 | P13: 108 | Q13: 108 | T13: =M13*100/M1558 -> 3.084555651 | U13: 9 | W13: 2 | X13: 35 | Y13: 250 | Z13: 0.972027972 | AA13: 0 | AB13: 0.02797202797 | AC13: =L13*100/B$1537 -> 141.3427562 | AD13: 0.02797202797
A14: 2020-03-07T18:00:00 | B14: 1 | C14: Piemonte | D14: 110 | E14: 38 | F14: 148 | G14: 54 | H14: 202 | I14: 63 | J14: 63 | K14: 0 | L14: 5 | M14: 207 | N14: 1046 | P14: 108 | Q14: 108 | T14: =M14*100/M1559 -> 3.518612953 | U14: 30 | W14: 1 | X14: 64 | Y14: 253 | Z14: 0.9758454106 | AA14: 0 | AB14: 0.02415458937 | AC14: =L14*100/B$1537 -> 176.6784452 | AD14: 0.02415458937
A15: 2020-03-08T18:00:00 | B15: 1 | C15: Piemonte | D15: 245 | E15: 45 | F15: 290 | G15: 65 | H15: 355 | I15: 153 | J15: 153 | K15: 0 | L15: 5 | M15: 360 | N15: 1636 | P15: 360 | Q15: x2 | R15: 360 | T15: =M15*100/M1560 -> 4.881355932 | U15: 90 | X15: 153 | Y15: 590 | Z15: 0.9861111111 | AA15: 0 | AB15: 0.01388888889 | AC15: =L15*100/B$1537 -> 176.6784452 | AD15: 0.01388888889
A16: 2020-03-09T18:00:00 | B16: 1 | C16: Piemonte | D16: 222 | E16: 50 | F16: 272 | G16: 65 | H16: 337 | I16: -18 | J16: -18 | K16: 0 | L16: 13 | M16: 350 | N16: 1681 | P16: 360 | Q16: 360 | T16: =M16*100/M1561 -> 3.815961622 | U16: -171 | W16: 8 | X16: -10 | Y16: 45 | Z16: 0.9628571429 | AA16: 0 | AB16: 0.03714285714 | AC16: =L16*100/B$1537 -> 459.3639576 | AD16: 0.03714285714
A17: 2020-03-10T18:00:00 | B17: 1 | C17: Piemonte | D17: 306 | E17: 66 | F17: 372 | G17: 64 | H17: 436 | I17: 99 | J17: 99 | K17: 0 | L17: 17 | M17: 453 | N17: 2374 | P17: 360 | Q17: 360 | T17: =M17*100/M1562 -> 4.46349394 | U17: 117 | W17: 4 | X17: 103 | Y17: 693 | Z17: 0.9624724062 | AA17: 0 | AB17: 0.03752759382 | AC17: =L17*100/B$1537 -> 600.7067138 | AD17: 0.03752759382
A18: 2020-03-11T17:00:00 | B18: 1 | C18: Piemonte | D18: 319 | E18: 75 | F18: 394 | G18: 86 | H18: 480 | I18: 44 | J18: 44 | K18: 0 | L18: 21 | M18: 501 | N18: 2431 | P18: 360 | Q18: 360 | T18: =M18*100/M1563 -> 4.020221473 | U18: -55 | W18: 4 | X18: 48 | Y18: 57 | Z18: 0.9580838323 | AA18: 0 | AB18: 0.04191616766 | AC18: =L18*100/B$1537 -> 742.04947 | AD18: 0.04191616766
A19: 2020-03-12T17:00:00 | B19: 1 | C19: Piemonte | D19: 368 | E19: 97 | F19: 465 | G19: 89 | H19: 554 | I19: 74 | J19: 74 | K19: 0 | L19: 26 | M19: 580 | N19: 2879 | P19: 360 | Q19: 360 | T19: =M19*100/M1564 -> 3.837755575 | U19: 30 | W19: 5 | X19: 79 | Y19: 448 | Z19: 0.9551724138 | AA19: 0 | AB19: 0.04482758621 | AC19: =L19*100/B$1537 -> 918.7279152 | AD19: 0.04482758621
A20: 2020-03-13T17:00:00 | B20: 1 | C20: Piemonte | D20: 556 | E20: 135 | F20: 691 | G20: 103 | H20: 794 | I20: 240 | J20: 240 | K20: 0 | L20: 46 | M20: 840 | N20: 3105 | P20: 840 | Q20: x2 | R20: 840 | T20: =M20*100/M1565 -> 4.756511891 | U20: 166 | W20: 20 | X20: 260 | Y20: 226 | Z20: 0.9452380952 | AA20: 0 | AB20: 0.05476190476 | AC20: =L20*100/B$1537 -> 1625.441696 | AD20: 0.05476190476
A21: 2020-03-14T17:00:00 | B21: 1 | C21: Piemonte | D21: 538 | E21: 150 | F21: 688 | G21: 126 | H21: 814 | I21: 20 | J21: 20 | K21: 0 | L21: 59 | M21: 873 | N21: 3680 | P21: 840 | Q21: 840 | T21: =M21*100/M1566 -> 4.126293898 | U21: -220 | W21: 13 | X21: 33 | Y21: 575 | Z21: 0.932416953 | AA21: 0 | AB21: 0.06758304696 | AC21: =L21*100/B$1537 -> 2084.805654 | AD21: 0.06758304696
A22: 2020-03-15T17:00:00 | B22: 1 | C22: Piemonte | D22: 726 | E22: 171 | F22: 897 | G22: 133 | H22: 1030 | I22: 216 | J22: 216 | K22: 0 | L22: 81 | M22: 1111 | N22: 4375 | P22: 840 | Q22: 840 | T22: =M22*100/M1567 -> 4.489433063 | U22: 196 | W22: 22 | X22: 238 | Y22: 695 | Z22: 0.9270927093 | AA22: 0 | AB22: 0.07290729073 | AC22: =L22*100/B$1537 -> 2862.190813 | AD22: 0.07290729073
A23: 2020-03-16T17:00:00 | B23: 1 | C23: Piemonte | D23: 1045 | E23: 186 | F23: 1231 | G23: 174 | H23: 1405 | I23: 375 | J23: 375 | K23: 0 | L23: 111 | M23: 1516 | N23: 5588 | P23: 840 | Q23: 840 | T23: =M23*100/M1568 -> 5.418155826 | U23: 159 | W23: 30 | X23: 405 | Y23: 1213 | Z23: 0.9267810026 | AA23: 0 | AB23: 0.07321899736 | AC23: =L23*100/B$1537 -> 3922.261484 | AD23: 0.07321899736
A24: 2020-03-17T17:00:00 | B24: 1 | C24: Piemonte | D24: 1378 | E24: 206 | F24: 1584 | G24: 180 | H24: 1764 | I24: 359 | J24: 359 | K24: 0 | L24: 133 | M24: 1897 | N24: 6543 | P24: 1897 | Q24: x2 | R24: 1897 | T24: =M24*100/M1569 -> 6.021075351 | U24: -16 | W24: 22 | X24: 381 | Y24: 955 | Z24: 0.9298892989 | AA24: 0 | AB24: 0.07011070111 | AC24: =L24*100/B$1537 -> 4699.646643 | AD24: 0.07011070111
A25: 2020-03-18T17:00:00 | B25: 1 | C25: Piemonte | D25: 1780 | E25: 227 | F25: 2007 | G25: 180 | H25: 2187 | I25: 423 | J25: 423 | K25: 0 | L25: 154 | M25: 2341 | N25: 7516 | P25: 1897 | Q25: 1897 | T25: =M25*100/M1570 -> 6.555035981 | U25: 64 | W25: 21 | X25: 444 | Y25: 973 | Z25: 0.9342161469 | AA25: 0 | AB25: 0.06578385305 | AC25: =L25*100/B$1537 -> 5441.696113 | AD25: 0.06578385305
A26: 2020-03-19T17:00:00 | B26: 1 | C26: Piemonte | D26: 2279 | E26: 257 | F26: 2536 | G26: 218 | H26: 2754 | I26: 567 | J26: 567 | K26: 3 | L26: 175 | M26: 2932 | N26: 8853 | P26: 1897 | Q26: 1897 | T26: =M26*100/M1571 -> 7.145120019 | U26: 144 | V26: 3 | W26: 21 | X26: 591 | Y26: 1337 | Z26: 0.9392905866 | AA26: 0.00102319236 | AB26: 0.05968622101 | AC26: =L26*100/B$1537 -> 6183.745583 | AD26: 0.05968622101
A27: 2020-03-20T17:00:00 | B27: 1 | C27: Piemonte | D27: 1541 | E27: 280 | F27: 1821 | G27: 1423 | H27: 3244 | I27: 490 | J27: 490 | K27: 8 | L27: 209 | M27: 3461 | N27: 9975 | P27: 1897 | Q27: 1897 | T27: =M27*100/M1572 -> 7.360541035 | U27: -77 | V27: 5 | W27: 34 | X27: 529 | Y27: 1122 | Z27: 0.937301358 | AA27: 0.002311470673 | AB27: 0.06038717134 | AC27: =L27*100/B$1537 -> 7385.159011 | AD27: 0.06038717134
A28: 2020-03-21T17:00:00 | B28: 1 | C28: Piemonte | D28: 1976 | E28: 301 | F28: 2277 | G28: 1229 | H28: 3506 | I28: 262 | J28: 262 | K28: 8 | L28: 238 | M28: 3752 | N28: 10701 | P28: 1897 | Q28: 1897 | T28: =M28*100/M1573 -> 7.002874314 | U28: -228 | W28: 29 | X28: 291 | Y28: 726 | Z28: 0.934434968 | AA28: 0.002132196162 | AB28: 0.06343283582 | AC28: =L28*100/B$1537 -> 8409.893993 | AD28: 0.06343283582
A29: 2020-03-22T17:00:00 | B29: 1 | C29: Piemonte | D29: 2118 | E29: 308 | F29: 2426 | G29: 1701 | H29: 4127 | I29: 621 | J29: 621 | K29: 10 | L29: 283 | M29: 4420 | N29: 12701 | P29: 4420 | Q29: x2 | R29: 4420 | T29: =M29*100/M1574 -> 7.474043762 | U29: 359 | V29: 2 | W29: 45 | X29: 668 | Y29: 2000 | Z29: 0.9337104072 | AA29: 0.002262443439 | AB29: 0.06402714932 | AC29: =L29*100/B$1537 -> 10000 | AD29: 0.06402714932
A30: 2020-03-23T17:00:00 | B30: 1 | C30: Piemonte | D30: 2194 | E30: 343 | F30: 2537 | G30: 1992 | H30: 4529 | I30: 402 | J30: 402 | K30: 17 | L30: 315 | M30: 4861 | N30: 13560 | P30: 4420 | Q30: 4420 | T30: =M30*100/M1575 -> 7.603985796 | U30: -219 | V30: 7 | W30: 32 | X30: 441 | Y30: 859 | Z30: 0.931701296 | AA30: 0.003497222794 | AB30: 0.06480148118 | AC30: =L30*100/B$1537 -> 11130.74205 | AD30: 0.06480148118
A31: 2020-03-24T17:00:00 | B31: 1 | C31: Piemonte | D31: 2404 | E31: 360 | F31: 2764 | G31: 2360 | H31: 5124 | I31: 595 | J31: 595 | K31: 17 | L31: 374 | M31: 5515 | N31: 15469 | P31: 4420 | Q31: 4420 | T31: =M31*100/M1576 -> 7.97241818 | U31: 193 | W31: 59 | X31: 654 | Y31: 1909 | Z31: 0.9291024479 | AA31: 0.003082502267 | AB31: 0.06781504986 | AC31: =L31*100/B$1537 -> 13215.5477 | AD31: 0.06781504986
A32: 2020-03-25T17:00:00 | B32: 1 | C32: Piemonte | D32: 2544 | E32: 381 | F32: 2925 | G32: 2631 | H32: 5556 | I32: 432 | J32: 432 | K32: 19 | L32: 449 | M32: 6024 | N32: 16655 | P32: 4420 | Q32: 4420 | T32: =M32*100/M1577 -> 8.098298067 | U32: -163 | V32: 2 | W32: 75 | X32: 509 | Y32: 1186 | Z32: 0.922310757 | AA32: 0.003154050465 | AB32: 0.07453519256 | AC32: =L32*100/B$1537 -> 15865.72438 | AD32: 0.07453519256
A33: 2020-03-26T17:00:00 | B33: 1 | C33: Piemonte | D33: 2633 | E33: 408 | F33: 3041 | G33: 2909 | H33: 5950 | I33: 394 | J33: 394 | K33: 135 | L33: 449 | M33: 6534 | N33: 18054 | P33: 4420 | Q33: 4420 | T33: =M33*100/M1578 -> 8.112839742 | U33: -38 | V33: 116 | X33: 510 | Y33: 1399 | Z33: 0.9106213652 | AA33: 0.02066115702 | AB33: 0.06871747781 | AC33: =L33*100/B$1537 -> 15865.72438 | AD33: 0.06871747781
A34: 2020-03-27T17:00:00 | B34: 1 | C34: Piemonte | D34: 2852 | E34: 431 | F34: 3283 | G34: 3064 | H34: 6347 | I34: 397 | J34: 558 | K34: 176 | L34: 569 | M34: 7092 | N34: 19705 | P34: 4420 | Q34: 4420 | T34: =M34*100/M1579 -> 8.199033504 | U34: 164 | V34: 41 | W34: 120 | X34: 558 | Y34: 1651 | Z34: =IF(M34=0,0,H34/M34) -> 0.8949520587 | AA34: =IF(M34=0,0,K34/M34) -> 0.02481669487 | AB34: =IF(M34=0,0,L34/M34) -> 0.08023124647 | AC34: =L34*100/B$1537 -> 20106.00707 | AD34: 0.08023124647
A35: 2020-03-28T17:00:00 | B35: 1 | C35: Piemonte | D35: 3094 | E35: 439 | F35: 3533 | G35: 3318 | H35: 6851 | I35: 504 | J35: 579 | K35: 203 | L35: 617 | M35: 7671 | N35: 21511 | P35: =IF(Q35="x2",M35,P34) -> 4420 | Q35: =IF(M35>P34*2,"x2",P34) -> 4420 | R35: =IF(Q35="x2",M35,"") ->  | T35: =M35*100/M1580 -> 8.295484038 | U35: =IF(J35-J34=0,"",J35-J34) -> 21 | V35: =IF(K35-K34=0,"",K35-K34) -> 27 | W35: =IF(L35-L34=0,"",L35-L34) -> 48 | X35: =IF(M35-M34=0,"",M35-M34) -> 579 | Y35: =IF(N35-N34=0,"",N35-N34) -> 1806 | Z35: 0.8931038978 | AA35: 0.02646330335 | AB35: 0.08043279885 | AC35: =L35*100/B$1537 -> 21802.12014 | AD35: 0.08043279885
A36: 2020-03-29T17:00:00 | B36: 1 | C36: Piemonte | D36: 2985 | E36: 443 | F36: 3428 | G36: 3840 | H36: 7268 | I36: 417 | J36: 535 | K36: 254 | L36: 684 | M36: 8206 | N36: 24058 | P36: 4420 | Q36: 4420 | T36: =M36*100/M1581 -> 8.400126933 | U36: -44 | V36: 51 | W36: 67 | X36: 535 | Y36: 2547 | Z36: 0.8856933951 | AA36: 0.03095296125 | AB36: 0.08335364368 | AC36: =L36*100/B$1537 -> 24169.61131 | AD36: 0.08335364368
A37: 2020-03-30T17:00:00 | B37: 1 | C37: Piemonte | D37: 2985 | E37: 452 | F37: 3437 | G37: 4218 | H37: 7655 | I37: 387 | J37: 506 | K37: 308 | L37: 749 | M37: 8712 | N37: 25478 | P37: 4420 | Q37: 4420 | T37: =M37*100/M1582 -> 8.563087901 | U37: -29 | V37: 54 | W37: 65 | X37: 506 | Y37: 1420 | Z37: 0.8786730946 | AA37: 0.03535353535 | AB37: 0.08597337006 | AC37: =L37*100/B$1537 -> 26466.4311 | AD37: 0.08597337006
A38: 2020-03-31T17:00:00 | B38: 1 | C38: Piemonte | D38: 3174 | E38: 452 | F38: 3626 | G38: 4456 | H38: 8082 | I38: 427 | J38: 589 | K38: 365 | L38: 854 | M38: 9301 | N38: 27658 | P38: 9301 | Q38: x2 | R38: 9301 | T38: =M38*100/M1583 -> 8.791780097 | U38: 83 | V38: 57 | W38: 105 | X38: 589 | Y38: 2180 | Z38: 0.8689388238 | AA38: 0.03924309214 | AB38: 0.09181808408 | AC38: =L38*100/B$1537 -> 30176.67845 | AD38: 0.09181808408
A39: 2020-04-01T17:00:00 | B39: 1 | C39: Piemonte | D39: 3146 | E39: 453 | F39: 3599 | G39: 4871 | H39: 8470 | I39: 388 | J39: 494 | K39: 439 | L39: 886 | M39: 9795 | N39: 30060 | P39: 9301 | Q39: 9301 | T39: =M39*100/M1584 -> 8.858321124 | U39: -95 | V39: 74 | W39: 32 | X39: 494 | Y39: 2402 | Z39: 0.8647269015 | AA39: 0.04481878509 | AB39: 0.09045431343 | AC39: =L39*100/B$1537 -> 31307.42049 | AD39: 0.09045431343
A40: 2020-04-02T17:00:00 | B40: 1 | C40: Piemonte | D40: 3341 | E40: 453 | F40: 3794 | G40: 5005 | H40: 8799 | I40: 329 | J40: 558 | K40: 571 | L40: 983 | M40: 10353 | N40: 32100 | P40: 9301 | Q40: 9301 | T40: =M40*100/M1585 -> 8.983703858 | U40: 64 | V40: 132 | W40: 97 | X40: 558 | Y40: 2040 | Z40: 0.8498985801 | AA40: 0.05515309572 | AB40: 0.09494832416 | AC40: =L40*100/B$1537 -> 34734.98233 | AD40: 0.09494832416
A41: 2020-04-03T17:00:00 | B41: 1 | C41: Piemonte | D41: 3300 | E41: 452 | F41: 3752 | G41: 5378 | H41: 9130 | I41: 331 | J41: 543 | K41: 723 | L41: 1043 | M41: 10896 | N41: 34281 | P41: 9301 | Q41: 9301 | T41: =M41*100/M1586 -> 9.093109232 | U41: -15 | V41: 152 | W41: 60 | X41: 543 | Y41: 2181 | Z41: 0.8379221733 | AA41: 0.06635462555 | AB41: 0.09572320117 | AC41: =L41*100/B$1537 -> 36855.12367 | AD41: 0.09572320117
A42: 2020-04-04T17:00:00 | B42: 1 | C42: Piemonte | D42: 3441 | E42: 450 | F42: 3891 | G42: 5802 | H42: 9693 | I42: 563 | J42: 813 | K42: 888 | L42: 1128 | M42: 11709 | N42: 37181 | P42: 9301 | Q42: 9301 | T42: =M42*100/M1587 -> 9.394858463 | U42: 270 | V42: 165 | W42: 85 | X42: 813 | Y42: 2900 | Z42: 0.8278247502 | AA42: 0.07583909813 | AB42: 0.09633615168 | AC42: =L42*100/B$1537 -> 39858.65724 | AD42: 0.09633615168
A43: 2020-04-05T17:00:00 | B43: 1 | C43: Piemonte | D43: 3472 | E43: 444 | F43: 3916 | G43: 6261 | H43: 10177 | I43: 484 | J43: 653 | K43: 1017 | L43: 1168 | M43: 12362 | N43: 38539 | P43: 9301 | Q43: 9301 | T43: =M43*100/M1588 -> 9.586810187 | U43: -160 | V43: 129 | W43: 40 | X43: 653 | Y43: 1358 | Z43: 0.8232486653 | AA43: 0.08226824138 | AB43: 0.09448309335 | AC43: =L43*100/B$1537 -> 41272.08481 | AD43: 0.09448309335
A44: 2020-04-06T17:00:00 | B44: 1 | C44: Piemonte | D44: 3484 | E44: 438 | F44: 3922 | G44: 6623 | H44: 10545 | I44: 368 | J44: 562 | K44: 1128 | L44: 1251 | M44: 12924 | N44: 41123 | P44: 9301 | Q44: 9301 | T44: =M44*100/M1589 -> 9.750503595 | U44: -91 | V44: 111 | W44: 83 | X44: 562 | Y44: 2584 | Z44: 0.8159238626 | AA44: 0.08727948004 | AB44: 0.09679665738 | AC44: =L44*100/B$1537 -> 44204.947 | AD44: 0.09679665738
A45: 2020-04-07T17:00:00 | B45: 1 | C45: Piemonte | D45: 3553 | E45: 432 | F45: 3985 | G45: 6719 | H45: 10704 | I45: 159 | J45: 419 | K45: 1320 | L45: 1319 | M45: 13343 | N45: 44121 | P45: 9301 | Q45: 9301 | T45: =M45*100/M1590 -> 9.840986533 | U45: -143 | V45: 192 | W45: 68 | X45: 419 | Y45: 2998 | Z45: 0.8022183917 | AA45: 0.098928277 | AB45: 0.09885333133 | AC45: =L45*100/B$1537 -> 46607.77385 | AD45: 0.09885333133
A46: 2020-04-08T17:00:00 | B46: 1 | C46: Piemonte | D46: 3493 | E46: 423 | F46: 3916 | G46: 7073 | H46: 10989 | I46: 285 | J46: 540 | K46: 1516 | L46: 1378 | M46: 13883 | N46: 48495 | P46: 9301 | Q46: 9301 | T46: =M46*100/M1591 -> 9.957538982 | U46: 121 | V46: 196 | W46: 59 | X46: 540 | Y46: 4374 | Z46: 0.7915436145 | AA46: 0.1091983001 | AB46: 0.09925808543 | AC46: =L46*100/B$1537 -> 48692.57951 | AD46: 0.09925808543
A47: 2020-04-09T17:00:00 | B47: 1 | C47: Piemonte | D47: 3514 | E47: 412 | F47: 3926 | G47: 7410 | H47: 11336 | I47: 347 | J47: 639 | K47: 1732 | L47: 1454 | M47: 14522 | N47: 52807 | P47: 9301 | Q47: 9301 | T47: =M47*100/M1592 -> 10.11098269 | U47: 99 | V47: 216 | W47: 76 | X47: 639 | Y47: 4312 | Z47: 0.7806087316 | AA47: 0.1192673186 | AB47: 0.1001239499 | AC47: =L47*100/B$1537 -> 51378.09187 | AD47: 0.1001239499
A48: 2020-04-10T17:00:00 | B48: 1 | C48: Piemonte | D48: 3497 | E48: 394 | F48: 3891 | G48: 7685 | H48: 11576 | I48: 240 | J48: 490 | K48: 1904 | L48: 1532 | M48: 15012 | N48: 57457 | P48: 9301 | Q48: 9301 | T48: =M48*100/M1593 -> 10.17231682 | U48: -149 | V48: 172 | W48: 78 | X48: 490 | Y48: 4650 | Z48: 0.7711164402 | AA48: 0.1268318678 | AB48: 0.102051692 | AC48: =L48*100/B$1537 -> 54134.27562 | AD48: 0.102051692
A49: 2020-04-11T17:00:00 | B49: 1 | C49: Piemonte | D49: 3435 | E49: 384 | F49: 3819 | G49: 8351 | H49: 12170 | I49: 594 | J49: 996 | K49: 2205 | L49: 1633 | M49: 16008 | N49: 62577 | P49: 9301 | Q49: 9301 | T49: =M49*100/M1594 -> 10.51283567 | U49: 506 | V49: 301 | W49: 101 | X49: 996 | Y49: 5120 | Z49: 0.7602448776 | AA49: 0.1377436282 | AB49: 0.1020114943 | AC49: =L49*100/B$1537 -> 57703.18021 | AD49: 0.1020114943
A50: 2020-04-12T17:00:00 | B50: 1 | C50: Piemonte | D50: 3429 | E50: 381 | F50: 3810 | G50: 8695 | H50: 12505 | I50: 335 | J50: 652 | K50: 2426 | L50: 1729 | M50: 16660 | N50: 66555 | P50: 9301 | Q50: 9301 | T50: =M50*100/M1595 -> 10.65469452 | U50: -344 | V50: 221 | W50: 96 | X50: 652 | Y50: 3978 | Z50: 0.7506002401 | AA50: 0.1456182473 | AB50: 0.1037815126 | AC50: =L50*100/B$1537 -> 61095.40636 | AD50: 0.1037815126
A51: 2020-04-13T17:00:00 | B51: 1 | C51: Piemonte | D51: 3344 | E51: 379 | F51: 3723 | G51: 9042 | H51: 12765 | I51: 260 | J51: 474 | K51: 2543 | L51: 1826 | M51: 17134 | N51: 69170 | P51: 9301 | Q51: 9301 | T51: =M51*100/M1596 -> 10.74124226 | U51: -178 | V51: 117 | W51: 97 | X51: 474 | Y51: 2615 | Z51: 0.7450099218 | AA51: 0.1484183495 | AB51: 0.1065717287 | AC51: =L51*100/B$1537 -> 64522.9682 | AD51: 0.1065717287
A52: 2020-04-14T17:00:00 | B52: 1 | C52: Piemonte | D52: 3395 | E52: 367 | F52: 3762 | G52: 9293 | H52: 13055 | I52: 290 | J52: 556 | K52: 2708 | L52: 1927 | M52: 17690 | N52: 71678 | P52: 9301 | Q52: 9301 | T52: =M52*100/M1597 -> 10.88695781 | U52: 82 | V52: 165 | W52: 101 | X52: 556 | Y52: 2508 | Z52: 0.7379875636 | AA52: 0.1530808366 | AB52: 0.1089315998 | AC52: =L52*100/B$1537 -> 68091.87279 | AD52: 0.1089315998
A53: 2020-04-15T17:00:00 | B53: 1 | C53: Piemonte | D53: 3338 | E53: 366 | F53: 3704 | G53: 9491 | H53: 13195 | I53: 140 | J53: 539 | K53: 3019 | L53: 2015 | M53: 18229 | N53: 75664 | P53: 9301 | Q53: 9301 | T53: =M53*100/M1598 -> 11.03751022 | U53: -17 | V53: 311 | W53: 88 | X53: 539 | Y53: 3986 | Z53: 0.723846618 | AA53: 0.1656152285 | AB53: 0.1105381535 | AC53: =L53*100/B$1537 -> 71201.41343 | AD53: 0.1105381535
A54: 2020-04-16T17:00:00 | B54: 1 | C54: Piemonte | D54: 3418 | E54: 346 | F54: 3764 | G54: 10019 | H54: 13783 | I54: 588 | J54: 879 | K54: 3231 | L54: 2094 | M54: 19108 | N54: 80708 | P54: 19108 | Q54: x2 | R54: 19108 | T54: =M54*100/M1599 -> 11.3104575 | U54: 340 | V54: 212 | W54: 79 | X54: 879 | Y54: 5044 | Z54: 0.7213209127 | AA54: 0.16909148 | AB54: 0.1095876073 | AC54: =L54*100/B$1537 -> 73992.93286 | AD54: 0.1095876073
A55: 2020-04-17T17:00:00 | B55: 1 | C55: Piemonte | D55: 3266 | E55: 333 | F55: 3599 | G55: 10399 | H55: 13998 | I55: 215 | J55: 695 | K55: 3634 | L55: 2171 | M55: 19803 | N55: 86714 | P55: =IF(Q55="x2",M55,P54) -> 19108 | Q55: =IF(M55>P54*2,"x2",P54) -> 19108 | R55: =IF(Q55="x2",M55,"") ->  | T55: =M55*100/M1600 -> 11.48439403 | U55: =IF(J55-J54=0,"",J55-J54) -> -184 | V55: =IF(K55-K54=0,"",K55-K54) -> 403 | W55: =IF(L55-L54=0,"",L55-L54) -> 77 | X55: =IF(M55-M54=0,"",M55-M54) -> 695 | Y55: =IF(N55-N54=0,"",N55-N54) -> 6006 | Z55: =IF(M55=0,0,H55/M55) -> 0.7068625966 | AA55: =IF(M55=0,0,K55/M55) -> 0.1835075494 | AB55: =IF(M55=0,0,L55/M55) -> 0.1096298541 | AC55: =L55*100/B$1537 -> 76713.78092 | AD55: 0.1096298541
A56: 2020-04-18T17:00:00 | B56: 1 | C56: Piemonte | D56: 3271 | E56: 323 | F56: 3594 | G56: 10629 | H56: 14223 | I56: 225 | J56: 661 | K56: 3989 | L56: 2252 | M56: 20464 | N56: 91844 | P56: =IF(Q56="x2",M56,P55) -> 19108 | Q56: =IF(M56>P55*2,"x2",P55) -> 19108 | R56: =IF(Q56="x2",M56,"") ->  | T56: =M56*100/M1601 -> 11.63222964 | U56: =IF(J56-J55=0,"",J56-J55) -> -34 | V56: =IF(K56-K55=0,"",K56-K55) -> 355 | W56: =IF(L56-L55=0,"",L56-L55) -> 81 | X56: =IF(M56-M55=0,"",M56-M55) -> 661 | Y56: =IF(N56-N55=0,"",N56-N55) -> 5130 | Z56: =IF(M56=0,0,H56/M56) -> 0.6950254105 | AA56: =IF(M56=0,0,K56/M56) -> 0.1949276779 | AB56: =IF(M56=0,0,L56/M56) -> 0.1100469116 | AC56: =L56*100/B$1537 -> 79575.97173 | AD56: 0.1100469116
A57: 2020-04-19T17:00:00 | B57: 1 | C57: Piemonte | D57: 3201 | E57: 305 | F57: 3506 | G57: 10964 | H57: 14470 | I57: 247 | J57: 593 | K57: 4256 | L57: 2331 | M57: 21057 | N57: 96569 | O57: 71644 | P57: =IF(Q57="x2",M57,P56) -> 19108 | Q57: =IF(M57>P56*2,"x2",P56) -> 19108 | R57: =IF(Q57="x2",M57,"") ->  | T57: =M57*100/M1602 -> 11.76552757 | U57: =IF(J57-J56=0,"",J57-J56) -> -68 | V57: =IF(K57-K56=0,"",K57-K56) -> 267 | W57: =IF(L57-L56=0,"",L57-L56) -> 79 | X57: =IF(M57-M56=0,"",M57-M56) -> 593 | Y57: =IF(N57-N56=0,"",N57-N56) -> 4725 | Z57: =IF(M57=0,0,H57/M57) -> 0.6871824096 | AA57: =IF(M57=0,0,K57/M57) -> 0.2021180605 | AB57: =IF(M57=0,0,L57/M57) -> 0.1106995298 | AC57: =L57*100/B$1537 -> 82367.49117 | AD57: 0.1106995298
A58: 2020-04-20T17:00:00 | B58: 1 | C58: Piemonte | D58: 3299 | E58: 301 | F58: 3600 | G58: 10957 | H58: 14557 | I58: 87 | J58: 292 | K58: 4383 | L58: 2409 | M58: 21349 | N58: 99669 | O58: 73192 | P58: =IF(Q58="x2",M58,P57) -> 19108 | Q58: =IF(M58>P57*2,"x2",P57) -> 19108 | R58: =IF(Q58="x2",M58,"") ->  | T58: =M58*100/M1603 -> 11.78018849 | U58: =IF(J58-J57=0,"",J58-J57) -> -301 | V58: =IF(K58-K57=0,"",K58-K57) -> 127 | W58: =IF(L58-L57=0,"",L58-L57) -> 78 | X58: =IF(M58-M57=0,"",M58-M57) -> 292 | Y58: =IF(N58-N57=0,"",N58-N57) -> 3100 | Z58: =IF(M58=0,0,H58/M58) -> 0.6818586351 | AA58: =IF(M58=0,0,K58/M58) -> 0.2053023561 | AB58: =IF(M58=0,0,L58/M58) -> 0.1128390089 | AC58: =L58*100/B$1537 -> 85123.67491 | AD58: 0.1128390089
A59: 2020-04-21T17:00:00 | B59: 1 | C59: Piemonte | D59: 3116 | E59: 293 | F59: 3409 | G59: 11402 | H59: 14811 | I59: 254 | J59: 606 | K59: 4659 | L59: 2485 | M59: 21955 | N59: 105434 | O59: 76406 | P59: 19108 | Q59: =IF(M59>P58*2,"x2",P58) -> 19108 | R59: =IF(Q59="x2",M59,"") ->  | T59: =M59*100/M1604 -> 11.93485434 | U59: =IF(J59-J58=0,"",J59-J58) -> 314 | V59: =IF(K59-K58=0,"",K59-K58) -> 276 | W59: =IF(L59-L58=0,"",L59-L58) -> 76 | X59: =IF(M59-M58=0,"",M59-M58) -> 606 | Y59: =IF(N59-N58=0,"",N59-N58) -> 5765 | Z59: =IF(M59=0,0,H59/M59) -> 0.674607151 | AA59: =IF(M59=0,0,K59/M59) -> 0.2122067866 | AB59: =IF(M59=0,0,L59/M59) -> 0.1131860624 | AC59: =L59*100/B$1537 -> 87809.18728 | AD59: 0.1131860624
A60: 2020-04-22T17:00:00 | B60: 1 | C60: Piemonte | D60: 3213 | E60: 273 | F60: 3486 | G60: 11636 | H60: 15122 | I60: 311 | J60: 784 | K60: 5058 | L60: 2559 | M60: 22739 | N60: 111513 | O60: 81176 | P60: 19108 | Q60: =IF(M60>P59*2,"x2",P59) -> 19108 | R60: =IF(Q60="x2",M60,"") ->  | T60: =M60*100/M1605 -> 12.13866661 | U60: =IF(J60-J59=0,"",J60-J59) -> 178 | V60: =IF(K60-K59=0,"",K60-K59) -> 399 | W60: =IF(L60-L59=0,"",L60-L59) -> 74 | X60: =IF(M60-M59=0,"",M60-M59) -> 784 | Y60: =IF(N60-N59=0,"",N60-N59) -> 6079 | Z60: =IF(M60=0,0,H60/M60) -> 0.6650248472 | AA60: =IF(M60=0,0,K60/M60) -> 0.2224372224 | AB60: =IF(M60=0,0,L60/M60) -> 0.1125379304 | AC60: =L60*100/B$1537 -> 90424.02827 | AD60: 0.1125379304
A61: 2020-04-23T17:00:00 | B61: 1 | C61: Piemonte | D61: 3039 | E61: 261 | F61: 3300 | G61: 11852 | H61: 15152 | I61: 30 | J61: 401 | K61: 5358 | L61: 2630 | M61: 23140 | N61: 117970 | O61: 84648 | P61: =IF(Q61="x2",M61,P60) -> 19108 | Q61: =IF(M61>P60*2,"x2",P60) -> 19108 | R61: =IF(Q61="x2",M61,"") ->  | T61: =M61*100/M1606 -> 12.18067831 | U61: =IF(J61-J60=0,"",J61-J60) -> -383 | V61: =IF(K61-K60=0,"",K61-K60) -> 300 | W61: =IF(L61-L60=0,"",L61-L60) -> 71 | X61: =IF(M61-M60=0,"",M61-M60) -> 401 | Y61: =IF(N61-N60=0,"",N61-N60) -> 6457 | Z61: =IF(M61=0,0,H61/M61) -> 0.6547968885 | AA61: =IF(M61=0,0,K61/M61) -> 0.2315471046 | AB61: =IF(M61=0,0,L61/M61) -> 0.1136560069 | AC61: =L61*100/B$1537 -> 92932.86219 | AD61: =IF(M61=0,0,L61/M61) -> 0.1136560069
A62: 2020-04-24T17:00:00 | B62: 1 | C62: Piemonte | D62: 2918 | E62: 257 | F62: 3175 | G62: 12216 | H62: 15391 | I62: 239 | J62: 682 | K62: 5732 | L62: 2699 | M62: 23822 | N62: 125300 | O62: 89392 | P62: =IF(Q62="x2",M62,P61) -> 19108 | Q62: =IF(M62>P61*2,"x2",P61) -> 19108 | R62: =IF(Q62="x2",M62,"") ->  | T62: =M62*100/M1607 -> 12.34338891 | U62: =IF(J62-J61=0,"",J62-J61) -> 281 | V62: =IF(K62-K61=0,"",K62-K61) -> 374 | W62: =IF(L62-L61=0,"",L62-L61) -> 69 | X62: =IF(M62-M61=0,"",M62-M61) -> 682 | Y62: =IF(N62-N61=0,"",N62-N61) -> 7330 | Z62: =IF(M62=0,0,H62/M62) -> 0.6460834523 | AA62: =IF(M62=0,0,K62/M62) -> 0.2406179162 | AB62: =IF(M62=0,0,L62/M62) -> 0.1132986315 | AC62: =L62*100/B$1537 -> 95371.02473 | AD62: =IF(M62=0,0,L62/M62) -> 0.1132986315
A63: 2020-04-25T17:00:00 | B63: 1 | C63: Piemonte | D63: 2937 | E63: 238 | F63: 3175 | G63: 12327 | H63: 15502 | I63: 111 | J63: 604 | K63: 6157 | L63: 2767 | M63: 24426 | N63: 131107 | O63: 93325 | P63: =IF(Q63="x2",M63,P62) -> 19108 | Q63: =IF(M63>P62*2,"x2",P62) -> 19108 | R63: =IF(Q63="x2",M63,"") ->  | T63: =M63*100/M1608 -> 12.50364728 | U63: =IF(J63-J62=0,"",J63-J62) -> -78 | V63: =IF(K63-K62=0,"",K63-K62) -> 425 | W63: =IF(L63-L62=0,"",L63-L62) -> 68 | X63: =IF(M63-M62=0,"",M63-M62) -> 604 | Y63: =IF(N63-N62=0,"",N63-N62) -> 5807 | Z63: =IF(M63=0,0,H63/M63) -> 0.6346516008 | AA63: =IF(M63=0,0,K63/M63) -> 0.2520674691 | AB63: =IF(M63=0,0,L63/M63) -> 0.1132809302 | AC63: =L63*100/B$1537 -> 97773.85159 | AD63: =IF(M63=0,0,L63/M63) -> 0.1132809302
A64: 2020-04-26T17:00:00 | B64: 1 | C64: Piemonte | D64: 2866 | E64: 214 | F64: 3080 | G64: 12439 | H64: 15519 | I64: 17 | J64: 394 | K64: 6478 | L64: 2823 | M64: 24820 | N64: 135142 | O64: 96977 | P64: =IF(Q64="x2",M64,P63) -> 19108 | Q64: =IF(M64>P63*2,"x2",P63) -> 19108 | R64: =IF(Q64="x2",M64,"") ->  | T64: =M64*100/M1609 -> 12.55596307 | U64: =IF(J64-J63=0,"",J64-J63) -> -210 | V64: =IF(K64-K63=0,"",K64-K63) -> 321 | W64: =IF(L64-L63=0,"",L64-L63) -> 56 | X64: =IF(M64-M63=0,"",M64-M63) -> 394 | Y64: =IF(N64-N63=0,"",N64-N63) -> 4035 | Z64: =IF(M64=0,0,H64/M64) -> 0.6252618856 | AA64: =IF(M64=0,0,K64/M64) -> 0.2609991942 | AB64: =IF(M64=0,0,L64/M64) -> 0.1137389202 | AC64: =L64*100/B$1537 -> 99752.65018 | AD64: =IF(M64=0,0,L64/M64) -> 0.1137389202
A65: 2020-04-27T17:00:00 | B65: 1 | C65: Piemonte | D65: 2830 | E65: 214 | F65: 3044 | G65: 12464 | H65: 15508 | I65: -11 | J65: 278 | K65: 6712 | L65: 2878 | M65: 25098 | N65: 139348 | O65: 99144 | P65: =IF(Q65="x2",M65,P64) -> 19108 | Q65: =IF(M65>P64*2,"x2",P64) -> 19108 | R65: =IF(Q65="x2",M65,"") ->  | T65: =M65*100/M1610 -> 12.58587662 | U65: =IF(J65-J64=0,"",J65-J64) -> -116 | V65: =IF(K65-K64=0,"",K65-K64) -> 234 | W65: =IF(L65-L64=0,"",L65-L64) -> 55 | X65: =IF(M65-M64=0,"",M65-M64) -> 278 | Y65: =IF(N65-N64=0,"",N65-N64) -> 4206 | Z65: =IF(M65=0,0,H65/M65) -> 0.6178978405 | AA65: =IF(M65=0,0,K65/M65) -> 0.2674316679 | AB65: =IF(M65=0,0,L65/M65) -> 0.1146704917 | AC65: =L65*100/B$1537 -> 101696.1131 | AD65: =IF(M65=0,0,L65/M65) -> 0.1146704917
A66: =A65 + 1 -> 2020-04-28T17:00:00 | Q66: Media x2 | R66: =COUNT(N2:N65) / COUNT(R2:R65) -> 6.4
A67: =A66+1 -> 2020-04-29T17:00:00
A68: =A67+1 -> 2020-04-30T17:00:00
E69: =E65/$M65 -> 0.008526575823 | H69: =H65/$M65 -> 0.6178978405 | K69: =K65/$M65 -> 0.2674316679 | L69: =L65/$M65 -> 0.1146704917 | N69: =N65/$M65 -> 5.55215555
A73: Data | B73: Codice | C73: Regione | D73: Ricoverati | E73: Terap. Intens. | F73: Ospedalizzati | G73: Quarantena | H73: Positivi | I73: + Positivi | J73: Nuovi | K73: Guariti | L73: Deceduti | M73: Totale | N73: Tamponi | O73: Testati | R73: x 2 | T73: % su Tot. | U73: + Nuovi | V73: + Guariti | W73: + Deceduti | X73: + Totali | Y73: + Tamponi | Z73: % Positivi | AA73: % Guariti | AB73: % Deceduti | AC73: P. Stimati | AD73: % Morti
A74: 2020-02-24T18:00:00 | B74: 2 | C74: Valle d'Aosta | D74: 0 | E74: 0 | F74: 0 | G74: 0 | H74: 0 | I74: 0 | J74: 0 | K74: 0 | L74: 0 | M74: 0 | N74: 7 | P74: =M74 -> 0 | R74: =M74 -> 0 | T74: =M74*100/M1547 -> 0 | Z74: =IF(M74=0,0,H74/M74) -> 0 | AA74: =IF(M74=0,0,K74/M74) -> 0 | AB74: =IF(M74=0,0,L74/M74) -> 0 | AC74: =L74*100/B$1537 -> 0 | AD74: =IF(M74=0,0,L74/M74) -> 0
A75: 2020-02-25T18:00:00 | B75: 2 | C75: Valle d'Aosta | D75: 0 | E75: 0 | F75: 0 | G75: 0 | H75: 0 | I75: 0 | J75: 0 | K75: 0 | L75: 0 | M75: 0 | N75: 7 | P75: =IF(Q75="x2",M75,P74) -> 0 | Q75: =IF(M75>P74*2,"x2",P74) -> 0 | R75: =IF(Q75="x2",M75,"") ->  | T75: =M75*100/M1548 -> 0 | U75: =IF(J75-J74=0,"",J75-J74) ->  | V75: =IF(K75-K74=0,"",K75-K74) ->  | W75: =IF(L75-L74=0,"",L75-L74) ->  | X75: =IF(M75-M74=0,"",M75-M74) ->  | Y75: =IF(N75-N74=0,"",N75-N74) ->  | Z75: 0 | AA75: 0 | AB75: 0 | AC75: =L75*100/B$1537 -> 0 | AD75: 0
A76: 2020-02-26T18:00:00 | B76: 2 | C76: Valle d'Aosta | D76: 0 | E76: 0 | F76: 0 | G76: 0 | H76: 0 | I76: 0 | J76: 0 | K76: 0 | L76: 0 | M76: 0 | N76: 7 | P76: 0 | Q76: 0 | T76: =M76*100/M1549 -> 0 | Z76: 0 | AA76: 0 | AB76: 0 | AC76: =L76*100/B$1537 -> 0 | AD76: 0
A77: 2020-02-27T18:00:00 | B77: 2 | C77: Valle d'Aosta | D77: 0 | E77: 0 | F77: 0 | G77: 0 | H77: 0 | I77: 0 | J77: 0 | K77: 0 | L77: 0 | M77: 0 | N77: 9 | P77: 0 | Q77: 0 | T77: =M77*100/M1550 -> 0 | Y77: 2 | Z77: 0 | AA77: 0 | AB77: 0 | AC77: =L77*100/B$1537 -> 0 | AD77: 0
A78: 2020-02-28T18:00:00 | B78: 2 | C78: Valle d'Aosta | D78: 0 | E78: 0 | F78: 0 | G78: 0 | H78: 0 | I78: 0 | J78: 0 | K78: 0 | L78: 0 | M78: 0 | N78: 9 | P78: 0 | Q78: 0 | T78: =M78*100/M1551 -> 0 | Z78: 0 | AA78: 0 | AB78: 0 | AC78: =L78*100/B$1537 -> 0 | AD78: 0
A79: 2020-02-29T17:00:00 | B79: 2 | C79: Valle d'Aosta | D79: 0 | E79: 0 | F79: 0 | G79: 0 | H79: 0 | I79: 0 | J79: 0 | K79: 0 | L79: 0 | M79: 0 | N79: 9 | P79: 0 | Q79: 0 | T79: =M79*100/M1552 -> 0 | Z79: 0 | AA79: 0 | AB79: 0 | AC79: =L79*100/B$1537 -> 0 | AD79: 0
A80: 2020-03-01T17:00:00 | B80: 2 | C80: Valle d'Aosta | D80: 0 | E80: 0 | F80: 0 | G80: 0 | H80: 0 | I80: 0 | J80: 0 | K80: 0 | L80: 0 | M80: 0 | N80: 10 | P80: 0 | Q80: 0 | T80: =M80*100/M1553 -> 0 | Y80: 1 | Z80: 0 | AA80: 0 | AB80: 0 | AC80: =L80*100/B$1537 -> 0 | AD80: 0
A81: 2020-03-02T18:00:00 | B81: 2 | C81: Valle d'Aosta | D81: 0 | E81: 0 | F81: 0 | G81: 0 | H81: 0 | I81: 0 | J81: 0 | K81: 0 | L81: 0 | M81: 0 | N81: 11 | P81: 0 | Q81: 0 | T81: =M81*100/M1554 -> 0 | Y81: 1 | Z81: 0 | AA81: 0 | AB81: 0 | AC81: =L81*100/B$1537 -> 0 | AD81: 0
A82: 2020-03-03T18:00:00 | B82: 2 | C82: Valle d'Aosta | D82: 0 | E82: 0 | F82: 0 | G82: 0 | H82: 0 | I82: 0 | J82: 0 | K82: 0 | L82: 0 | M82: 0 | N82: 12 | P82: 0 | Q82: 0 | T82: =M82*100/M1555 -> 0 | Y82: 1 | Z82: 0 | AA82: 0 | AB82: 0 | AC82: =L82*100/B$1537 -> 0 | AD82: 0
A83: 2020-03-04T17:00:00 | B83: 2 | C83: Valle d'Aosta | D83: 0 | E83: 0 | F83: 0 | G83: 0 | H83: 0 | I83: 0 | J83: 0 | K83: 0 | L83: 0 | M83: 0 | N83: 15 | P83: 0 | Q83: 0 | T83: =M83*100/M1556 -> 0 | Y83: 3 | Z83: 0 | AA83: 0 | AB83: 0 | AC83: =L83*100/B$1537 -> 0 | AD83: 0
A84: 2020-03-05T17:00:00 | B84: 2 | C84: Valle d'Aosta | D84: 0 | E84: 0 | F84: 0 | G84: 2 | H84: 2 | I84: 2 | J84: 2 | K84: 0 | L84: 0 | M84: 2 | N84: 21 | P84: 2 | Q84: x2 | R84: 2 | T84: =M84*100/M1557 -> 0.05184033178 | U84: 2 | X84: 2 | Y84: 6 | Z84: 1 | AA84: 0 | AB84: 0 | AC84: =L84*100/B$1537 -> 0 | AD84: 0
A85: 2020-03-06T17:00:00 | B85: 2 | C85: Valle d'Aosta | D85: 0 | E85: 0 | F85: 0 | G85: 7 | H85: 7 | I85: 5 | J85: 5 | K85: 0 | L85: 0 | M85: 7 | N85: 28 | P85: 7 | Q85: x2 | R85: 7 | T85: =M85*100/M1558 -> 0.1509922347 | U85: 3 | X85: 5 | Y85: 7 | Z85: 1 | AA85: 0 | AB85: 0 | AC85: =L85*100/B$1537 -> 0 | AD85: 0
A86: 2020-03-07T18:00:00 | B86: 2 | C86: Valle d'Aosta | D86: 1 | E86: 0 | F86: 1 | G86: 7 | H86: 8 | I86: 1 | J86: 1 | K86: 0 | L86: 0 | M86: 8 | N86: 32 | P86: 7 | Q86: 7 | T86: =M86*100/M1559 -> 0.1359850416 | U86: -4 | X86: 1 | Y86: 4 | Z86: 1 | AA86: 0 | AB86: 0 | AC86: =L86*100/B$1537 -> 0 | AD86: 0
A87: 2020-03-08T18:00:00 | B87: 2 | C87: Valle d'Aosta | D87: 1 | E87: 0 | F87: 1 | G87: 8 | H87: 9 | I87: 1 | J87: 1 | K87: 0 | L87: 0 | M87: 9 | N87: 41 | P87: 7 | Q87: 7 | T87: =M87*100/M1560 -> 0.1220338983 | X87: 1 | Y87: 9 | Z87: 1 | AA87: 0 | AB87: 0 | AC87: =L87*100/B$1537 -> 0 | AD87: 0
A88: 2020-03-09T18:00:00 | B88: 2 | C88: Valle d'Aosta | D88: 4 | E88: 0 | F88: 4 | G88: 11 | H88: 15 | I88: 6 | J88: 6 | K88: 0 | L88: 0 | M88: 15 | N88: 67 | P88: 15 | Q88: x2 | R88: 15 | T88: =M88*100/M1561 -> 0.1635412124 | U88: 5 | X88: 6 | Y88: 26 | Z88: 1 | AA88: 0 | AB88: 0 | AC88: =L88*100/B$1537 -> 0 | AD88: 0
A89: 2020-03-10T18:00:00 | B89: 2 | C89: Valle d'Aosta | D89: 2 | E89: 0 | F89: 2 | G89: 15 | H89: 17 | I89: 2 | J89: 2 | K89: 0 | L89: 0 | M89: 17 | N89: 89 | P89: 15 | Q89: 15 | T89: =M89*100/M1562 -> 0.1675041876 | U89: -4 | X89: 2 | Y89: 22 | Z89: 1 | AA89: 0 | AB89: 0 | AC89: =L89*100/B$1537 -> 0 | AD89: 0
A90: 2020-03-11T17:00:00 | B90: 2 | C90: Valle d'Aosta | D90: 2 | E90: 0 | F90: 2 | G90: 17 | H90: 19 | I90: 2 | J90: 2 | K90: 0 | L90: 1 | M90: 20 | N90: 99 | P90: 15 | Q90: 15 | T90: =M90*100/M1563 -> 0.1604878832 | W90: 1 | X90: 3 | Y90: 10 | Z90: 0.95 | AA90: 0 | AB90: 0.05 | AC90: =L90*100/B$1537 -> 35.33568905 | AD90: 0.05
A91: 2020-03-12T17:00:00 | B91: 2 | C91: Valle d'Aosta | D91: 7 | E91: 0 | F91: 7 | G91: 19 | H91: 26 | I91: 7 | J91: 7 | K91: 0 | L91: 1 | M91: 27 | N91: 118 | P91: 15 | Q91: 15 | T91: =M91*100/M1564 -> 0.1786541388 | U91: 5 | X91: 7 | Y91: 19 | Z91: 0.962962963 | AA91: 0 | AB91: 0.03703703704 | AC91: =L91*100/B$1537 -> 35.33568905 | AD91: 0.03703703704
A92: 2020-03-13T17:00:00 | B92: 2 | C92: Valle d'Aosta | D92: 6 | E92: 0 | F92: 6 | G92: 21 | H92: 27 | I92: 1 | J92: 1 | K92: 0 | L92: 1 | M92: 28 | N92: 189 | P92: 15 | Q92: 15 | T92: =M92*100/M1565 -> 0.1585503964 | U92: -6 | X92: 1 | Y92: 71 | Z92: 0.9642857143 | AA92: 0 | AB92: 0.03571428571 | AC92: =L92*100/B$1537 -> 35.33568905 | AD92: 0.03571428571
A93: 2020-03-14T17:00:00 | B93: 2 | C93: Valle d'Aosta | D93: 12 | E93: 0 | F93: 12 | G93: 29 | H93: 41 | I93: 14 | J93: 14 | K93: 0 | L93: 1 | M93: 42 | N93: 231 | P93: 42 | Q93: x2 | R93: 42 | T93: =M93*100/M1566 -> 0.1985158576 | U93: 13 | X93: 14 | Y93: 42 | Z93: 0.9761904762 | AA93: 0 | AB93: 0.02380952381 | AC93: =L93*100/B$1537 -> 35.33568905 | AD93: 0.02380952381
A94: 2020-03-15T17:00:00 | B94: 2 | C94: Valle d'Aosta | D94: 10 | E94: 3 | F94: 13 | G94: 43 | H94: 56 | I94: 15 | J94: 15 | K94: 0 | L94: 1 | M94: 57 | N94: 230 | P94: 42 | Q94: 42 | T94: =M94*100/M1567 -> 0.2303309492 | U94: 1 | X94: 15 | Y94: -1 | Z94: 0.9824561404 | AA94: 0 | AB94: 0.01754385965 | AC94: =L94*100/B$1537 -> 35.33568905 | AD94: 0.01754385965
A95: 2020-03-16T17:00:00 | B95: 2 | C95: Valle d'Aosta | D95: 28 | E95: 5 | F95: 33 | G95: 70 | H95: 103 | I95: 47 | J95: 47 | K95: 0 | L95: 2 | M95: 105 | N95: 287 | P95: 105 | Q95: x2 | R95: 105 | T95: =M95*100/M1568 -> 0.3752680486 | U95: 32 | W95: 1 | X95: 48 | Y95: 57 | Z95: 0.980952381 | AA95: 0 | AB95: 0.01904761905 | AC95: =L95*100/B$1537 -> 70.67137809 | AD95: 0.01904761905
A96: 2020-03-17T17:00:00 | B96: 2 | C96: Valle d'Aosta | D96: 35 | E96: 6 | F96: 41 | G96: 93 | H96: 134 | I96: 31 | J96: 31 | K96: 0 | L96: 2 | M96: 136 | N96: 398 | P96: 105 | Q96: 105 | T96: =M96*100/M1569 -> 0.4316638101 | U96: -16 | X96: 31 | Y96: 111 | Z96: 0.9852941176 | AA96: 0 | AB96: 0.01470588235 | AC96: =L96*100/B$1537 -> 70.67137809 | AD96: 0.01470588235
A97: 2020-03-18T17:00:00 | B97: 2 | C97: Valle d'Aosta | D97: 41 | E97: 3 | F97: 44 | G97: 118 | H97: 162 | I97: 28 | J97: 28 | K97: 0 | L97: 3 | M97: 165 | N97: 486 | P97: 105 | Q97: 105 | T97: =M97*100/M1570 -> 0.4620166326 | U97: -3 | W97: 1 | X97: 29 | Y97: 88 | Z97: 0.9818181818 | AA97: 0 | AB97: 0.01818181818 | AC97: =L97*100/B$1537 -> 106.0070671 | AD97: 0.01818181818
A98: 2020-03-19T17:00:00 | B98: 2 | C98: Valle d'Aosta | D98: 47 | E98: 9 | F98: 56 | G98: 153 | H98: 209 | I98: 47 | J98: 47 | K98: 0 | L98: 6 | M98: 215 | N98: 608 | P98: 215 | Q98: x2 | R98: 215 | T98: =M98*100/M1571 -> 0.5239429755 | U98: 19 | W98: 3 | X98: 50 | Y98: 122 | Z98: 0.9720930233 | AA98: 0 | AB98: 0.02790697674 | AC98: =L98*100/B$1537 -> 212.0141343 | AD98: 0.02790697674
A99: 2020-03-20T17:00:00 | B99: 2 | C99: Valle d'Aosta | D99: 54 | E99: 9 | F99: 63 | G99: 194 | H99: 257 | I99: 48 | J99: 48 | K99: 0 | L99: 7 | M99: 264 | N99: 814 | P99: 215 | Q99: 215 | T99: =M99*100/M1572 -> 0.5614512665 | U99: 1 | W99: 1 | X99: 49 | Y99: 206 | Z99: 0.9734848485 | AA99: 0 | AB99: 0.02651515152 | AC99: =L99*100/B$1537 -> 247.3498233 | AD99: 0.02651515152
A100: 2020-03-21T17:00:00 | B100: 2 | C100: Valle d'Aosta | D100: 62 | E100: 15 | F100: 77 | G100: 227 | H100: 304 | I100: 47 | J100: 47 | K100: 1 | L100: 8 | M100: 313 | N100: 884 | P100: 215 | Q100: 215 | T100: =M100*100/M1573 -> 0.5841950054 | U100: -1 | V100: 1 | W100: 1 | X100: 49 | Y100: 70 | Z100: 0.9712460064 | AA100: 0.003194888179 | AB100: 0.02555910543 | AC100: =L100*100/B$1537 -> 282.6855124 | AD100: 0.02555910543
A101: 2020-03-22T17:00:00 | B101: 2 | C101: Valle d'Aosta | D101: 63 | E101: 21 | F101: 84 | G101: 270 | H101: 354 | I101: 50 | J101: 50 | K101: 1 | L101: 9 | M101: 364 | N101: 950 | P101: 215 | Q101: 215 | T101: =M101*100/M1574 -> 0.6155094863 | U101: 3 | W101: 1 | X101: 51 | Y101: 66 | Z101: 0.9725274725 | AA101: 0.002747252747 | AB101: 0.02472527473 | AC101: =L101*100/B$1537 -> 318.0212014 | AD101: 0.02472527473
A102: 2020-03-23T17:00:00 | B102: 2 | C102: Valle d'Aosta | D102: 69 | E102: 20 | F102: 89 | G102: 290 | H102: 379 | I102: 25 | J102: 25 | K102: 2 | L102: 12 | M102: 393 | N102: 1098 | P102: 215 | Q102: 215 | T102: =M102*100/M1575 -> 0.6147637149 | U102: -25 | V102: 1 | W102: 3 | X102: 29 | Y102: 148 | Z102: 0.9643765903 | AA102: 0.005089058524 | AB102: 0.03053435115 | AC102: =L102*100/B$1537 -> 424.0282686 | AD102: 0.03053435115
A103: 2020-03-24T17:00:00 | B103: 2 | C103: Valle d'Aosta | D103: 71 | E103: 20 | F103: 91 | G103: 288 | H103: 379 | I103: 0 | J103: 0 | K103: 2 | L103: 19 | M103: 400 | N103: 1180 | P103: 215 | Q103: 215 | T103: =M103*100/M1576 -> 0.5782352261 | U103: -25 | W103: 7 | X103: 7 | Y103: 82 | Z103: 0.9475 | AA103: 0.005 | AB103: 0.0475 | AC103: =L103*100/B$1537 -> 671.3780919 | AD103: 0.0475
A104: 2020-03-25T17:00:00 | B104: 2 | C104: Valle d'Aosta | D104: 70 | E104: 25 | F104: 95 | G104: 280 | H104: 375 | I104: -4 | J104: -4 | K104: 2 | L104: 24 | M104: 401 | N104: 1200 | P104: 215 | Q104: 215 | T104: =M104*100/M1577 -> 0.5390799344 | U104: -4 | W104: 5 | X104: 1 | Y104: 20 | Z104: 0.9351620948 | AA104: 0.004987531172 | AB104: 0.05985037406 | AC104: =L104*100/B$1537 -> 848.0565371 | AD104: 0.05985037406
A105: 2020-03-26T17:00:00 | B105: 2 | C105: Valle d'Aosta | D105: 73 | E105: 24 | F105: 97 | G105: 281 | H105: 378 | I105: 3 | J105: 3 | K105: 2 | L105: 28 | M105: 408 | N105: 1203 | P105: 215 | Q105: 215 | T105: =M105*100/M1578 -> 0.506586871 | U105: 7 | W105: 4 | X105: 7 | Y105: 3 | Z105: 0.9264705882 | AA105: 0.004901960784 | AB105: 0.06862745098 | AC105: =L105*100/B$1537 -> 989.3992933 | AD105: 0.06862745098
A106: 2020-03-27T17:00:00 | B106: 2 | C106: Valle d'Aosta | D106: 91 | E106: 24 | F106: 115 | G106: 298 | H106: 413 | I106: 35 | J106: 44 | K106: 2 | L106: 37 | M106: 452 | N106: 1252 | P106: 452 | Q106: x2 | R106: 452 | T106: =M106*100/M1579 -> 0.5225554348 | U106: 41 | W106: 9 | X106: 44 | Y106: 49 | Z106: =IF(M106=0,0,H106/M106) -> 0.9137168142 | AA106: =IF(M106=0,0,K106/M106) -> 0.004424778761 | AB106: =IF(M106=0,0,L106/M106) -> 0.08185840708 | AC106: =L106*100/B$1537 -> 1307.420495 | AD106: 0.08185840708
A107: 2020-03-28T17:00:00 | B107: 2 | C107: Valle d'Aosta | D107: 90 | E107: 26 | F107: 116 | G107: 352 | H107: 468 | I107: 55 | J107: 59 | K107: 2 | L107: 41 | M107: 511 | N107: 1380 | P107: =IF(Q107="x2",M107,P106) -> 452 | Q107: =IF(M107>P106*2,"x2",P106) -> 452 | R107: =IF(Q107="x2",M107,"") ->  | T107: =M107*100/M1580 -> 0.5525997059 | U107: =IF(J107-J106=0,"",J107-J106) -> 15 | V107: =IF(K107-K106=0,"",K107-K106) ->  | W107: =IF(L107-L106=0,"",L107-L106) -> 4 | X107: =IF(M107-M106=0,"",M107-M106) -> 59 | Y107: =IF(N107-N106=0,"",N107-N106) -> 128 | Z107: 0.915851272 | AA107: 0.003913894325 | AB107: 0.08023483366 | AC107: =L107*100/B$1537 -> 1448.763251 | AD107: 0.08023483366
A108: 2020-03-29T17:00:00 | B108: 2 | C108: Valle d'Aosta | D108: 90 | E108: 26 | F108: 116 | G108: 423 | H108: 539 | I108: 71 | J108: 73 | K108: 2 | L108: 43 | M108: 584 | N108: 1480 | P108: 452 | Q108: 452 | T108: =M108*100/M1581 -> 0.5978155166 | U108: 14 | W108: 2 | X108: 73 | Y108: 100 | Z108: 0.9229452055 | AA108: 0.003424657534 | AB108: 0.07363013699 | AC108: =L108*100/B$1537 -> 1519.434629 | AD108: 0.07363013699
A109: 2020-03-30T17:00:00 | B109: 2 | C109: Valle d'Aosta | D109: 92 | E109: 26 | F109: 118 | G109: 400 | H109: 518 | I109: -21 | J109: 0 | K109: 16 | L109: 50 | M109: 584 | N109: 1536 | P109: 452 | Q109: 452 | T109: =M109*100/M1582 -> 0.5740178299 | U109: -73 | V109: 14 | W109: 7 | Y109: 56 | Z109: 0.8869863014 | AA109: 0.02739726027 | AB109: 0.08561643836 | AC109: =L109*100/B$1537 -> 1766.784452 | AD109: 0.08561643836
A110: 2020-03-31T17:00:00 | B110: 2 | C110: Valle d'Aosta | D110: 91 | E110: 26 | F110: 117 | G110: 435 | H110: 552 | I110: 34 | J110: 44 | K110: 20 | L110: 56 | M110: 628 | N110: 1582 | P110: 452 | Q110: 452 | T110: =M110*100/M1583 -> 0.5936176649 | U110: 44 | V110: 4 | W110: 6 | X110: 44 | Y110: 46 | Z110: 0.8789808917 | AA110: 0.03184713376 | AB110: 0.08917197452 | AC110: =L110*100/B$1537 -> 1978.798587 | AD110: 0.08917197452
A111: 2020-04-01T17:00:00 | B111: 2 | C111: Valle d'Aosta | D111: 85 | E111: 27 | F111: 112 | G111: 428 | H111: 540 | I111: -12 | J111: 3 | K111: 32 | L111: 59 | M111: 631 | N111: 1717 | P111: 452 | Q111: 452 | T111: =M111*100/M1584 -> 0.5706585635 | U111: -41 | V111: 12 | W111: 3 | X111: 3 | Y111: 135 | Z111: 0.8557844691 | AA111: 0.05071315372 | AB111: 0.09350237718 | AC111: =L111*100/B$1537 -> 2084.805654 | AD111: 0.09350237718
A112: 2020-04-02T17:00:00 | B112: 2 | C112: Valle d'Aosta | D112: 85 | E112: 25 | F112: 110 | G112: 446 | H112: 556 | I112: 16 | J112: 37 | K112: 49 | L112: 63 | M112: 668 | N112: 1934 | P112: 452 | Q112: 452 | T112: =M112*100/M1585 -> 0.5796497805 | U112: 34 | V112: 17 | W112: 4 | X112: 37 | Y112: 217 | Z112: 0.8323353293 | AA112: 0.07335329341 | AB112: 0.09431137725 | AC112: =L112*100/B$1537 -> 2226.14841 | AD112: 0.09431137725
A113: 2020-04-03T17:00:00 | B113: 2 | C113: Valle d'Aosta | D113: 85 | E113: 25 | F113: 110 | G113: 450 | H113: 560 | I113: 4 | J113: 51 | K113: 89 | L113: 70 | M113: 719 | N113: 2106 | P113: 452 | Q113: 452 | T113: =M113*100/M1586 -> 0.6000317124 | U113: 14 | V113: 40 | W113: 7 | X113: 51 | Y113: 172 | Z113: 0.7788595271 | AA113: 0.123783032 | AB113: 0.09735744089 | AC113: =L113*100/B$1537 -> 2473.498233 | AD113: 0.09735744089
A114: 2020-04-04T17:00:00 | B114: 2 | C114: Valle d'Aosta | D114: 63 | E114: 23 | F114: 86 | G114: 474 | H114: 560 | I114: 0 | J114: 29 | K114: 106 | L114: 82 | M114: 748 | N114: 2274 | P114: 452 | Q114: 452 | T114: =M114*100/M1587 -> 0.6001668913 | U114: -22 | V114: 17 | W114: 12 | X114: 29 | Y114: 168 | Z114: 0.7486631016 | AA114: 0.1417112299 | AB114: 0.1096256684 | AC114: =L114*100/B$1537 -> 2897.526502 | AD114: 0.1096256684
A115: 2020-04-05T17:00:00 | B115: 2 | C115: Valle d'Aosta | D115: 96 | E115: 23 | F115: 119 | G115: 457 | H115: 576 | I115: 16 | J115: 34 | K115: 115 | L115: 91 | M115: 782 | N115: 2390 | P115: 452 | Q115: 452 | T115: =M115*100/M1588 -> 0.6064460092 | U115: 5 | V115: 9 | W115: 9 | X115: 34 | Y115: 116 | Z115: 0.73657289 | AA115: 0.1470588235 | AB115: 0.1163682864 | AC115: =L115*100/B$1537 -> 3215.547703 | AD115: 0.1163682864
A116: 2020-04-06T17:00:00 | B116: 2 | C116: Valle d'Aosta | D116: 109 | E116: 21 | F116: 130 | G116: 437 | H116: 567 | I116: -9 | J116: 23 | K116: 142 | L116: 96 | M116: 805 | N116: 2590 | P116: 452 | Q116: 452 | T116: =M116*100/M1589 -> 0.6073317389 | U116: -11 | V116: 27 | W116: 5 | X116: 23 | Y116: 200 | Z116: 0.7043478261 | AA116: 0.1763975155 | AB116: 0.1192546584 | AC116: =L116*100/B$1537 -> 3392.226148 | AD116: 0.1192546584
A117: 2020-04-07T17:00:00 | B117: 2 | C117: Valle d'Aosta | D117: 118 | E117: 17 | F117: 135 | G117: 458 | H117: 593 | I117: 26 | J117: 30 | K117: 142 | L117: 100 | M117: 835 | N117: 2754 | P117: 452 | Q117: 452 | T117: =M117*100/M1590 -> 0.6158452938 | U117: 7 | W117: 4 | X117: 30 | Y117: 164 | Z117: 0.7101796407 | AA117: 0.1700598802 | AB117: 0.119760479 | AC117: =L117*100/B$1537 -> 3533.568905 | AD117: 0.119760479
A118: 2020-04-08T17:00:00 | B118: 2 | C118: Valle d'Aosta | D118: 120 | E118: 20 | F118: 140 | G118: 466 | H118: 606 | I118: 13 | J118: 15 | K118: 142 | L118: 102 | M118: 850 | N118: 2953 | P118: 452 | Q118: 452 | T118: =M118*100/M1591 -> 0.6096598815 | U118: -15 | W118: 2 | X118: 15 | Y118: 199 | Z118: 0.7129411765 | AA118: 0.1670588235 | AB118: 0.12 | AC118: =L118*100/B$1537 -> 3604.240283 | AD118: 0.12
A119: 2020-04-09T17:00:00 | B119: 2 | C119: Valle d'Aosta | D119: 118 | E119: 18 | F119: 136 | G119: 473 | H119: 609 | I119: 3 | J119: 18 | K119: 154 | L119: 105 | M119: 868 | N119: 3142 | P119: 452 | Q119: 452 | T119: =M119*100/M1592 -> 0.6043474023 | U119: 3 | V119: 12 | W119: 3 | X119: 18 | Y119: 189 | Z119: 0.7016129032 | AA119: 0.1774193548 | AB119: 0.1209677419 | AC119: =L119*100/B$1537 -> 3710.24735 | AD119: 0.1209677419
A120: 2020-04-10T17:00:00 | B120: 2 | C120: Valle d'Aosta | D120: 131 | E120: 16 | F120: 147 | G120: 455 | H120: 602 | I120: -7 | J120: 11 | K120: 170 | L120: 107 | M120: 879 | N120: 3328 | P120: 452 | Q120: 452 | T120: =M120*100/M1593 -> 0.5956212689 | U120: -7 | V120: 16 | W120: 2 | X120: 11 | Y120: 186 | Z120: 0.6848691695 | AA120: 0.1934015927 | AB120: 0.1217292378 | AC120: =L120*100/B$1537 -> 3780.918728 | AD120: 0.1217292378
A121: 2020-04-11T17:00:00 | B121: 2 | C121: Valle d'Aosta | D121: 118 | E121: 17 | F121: 135 | G121: 455 | H121: 590 | I121: -12 | J121: 23 | K121: 205 | L121: 107 | M121: 902 | N121: 3464 | P121: 452 | Q121: 452 | T121: =M121*100/M1594 -> 0.5923649283 | U121: 12 | V121: 35 | X121: 23 | Y121: 136 | Z121: 0.6541019956 | AA121: 0.2272727273 | AB121: 0.1186252772 | AC121: =L121*100/B$1537 -> 3780.918728 | AD121: 0.1186252772
A122: 2020-04-12T17:00:00 | B122: 2 | C122: Valle d'Aosta | D122: 109 | E122: 16 | F122: 125 | G122: 463 | H122: 588 | I122: -2 | J122: 19 | K122: 221 | L122: 112 | M122: 921 | N122: 3510 | P122: 921 | Q122: x2 | R122: 921 | T122: =M122*100/M1595 -> 0.5890140251 | U122: -4 | V122: 16 | W122: 5 | X122: 19 | Y122: 46 | Z122: 0.6384364821 | AA122: 0.2399565689 | AB122: 0.121606949 | AC122: =L122*100/B$1537 -> 3957.597173 | AD122: 0.121606949
A123: 2020-04-13T17:00:00 | B123: 2 | C123: Valle d'Aosta | D123: 109 | E123: 15 | F123: 124 | G123: 458 | H123: 582 | I123: -6 | J123: 6 | K123: 230 | L123: 115 | M123: 927 | N123: 3614 | P123: 921 | Q123: 921 | T123: =M123*100/M1596 -> 0.5811329271 | U123: -13 | V123: 9 | W123: 3 | X123: 6 | Y123: 104 | Z123: 0.6278317152 | AA123: 0.2481121899 | AB123: 0.1240560949 | AC123: =L123*100/B$1537 -> 4063.60424 | AD123: 0.1240560949
A124: 2020-04-14T17:00:00 | B124: 2 | C124: Valle d'Aosta | D124: 112 | E124: 14 | F124: 126 | G124: 433 | H124: 559 | I124: -23 | J124: 20 | K124: 270 | L124: 118 | M124: 947 | N124: 3726 | P124: 921 | Q124: 921 | T124: =M124*100/M1597 -> 0.5828122692 | U124: 14 | V124: 40 | W124: 3 | X124: 20 | Y124: 112 | Z124: 0.5902851109 | AA124: 0.2851108765 | AB124: 0.1246040127 | AC124: =L124*100/B$1537 -> 4169.611307 | AD124: 0.1246040127
A125: 2020-04-15T17:00:00 | B125: 2 | C125: Valle d'Aosta | D125: 112 | E125: 11 | F125: 123 | G125: 425 | H125: 548 | I125: -11 | J125: 11 | K125: 289 | L125: 121 | M125: 958 | N125: 3894 | P125: 921 | Q125: 921 | T125: =M125*100/M1598 -> 0.5800611547 | U125: -9 | V125: 19 | W125: 3 | X125: 11 | Y125: 168 | Z125: 0.5720250522 | AA125: 0.3016701461 | AB125: 0.1263048017 | AC125: =L125*100/B$1537 -> 4275.618375 | AD125: 0.1263048017
A126: 2020-04-16T17:00:00 | B126: 2 | C126: Valle d'Aosta | D126: 105 | E126: 12 | F126: 117 | G126: 401 | H126: 518 | I126: -30 | J126: 13 | K126: 331 | L126: 122 | M126: 971 | N126: 4159 | P126: 921 | Q126: 921 | T126: =M126*100/M1599 -> 0.5747568678 | U126: 2 | V126: 42 | W126: 1 | X126: 13 | Y126: 265 | Z126: 0.5334706488 | AA126: 0.3408856849 | AB126: 0.1256436663 | AC126: =L126*100/B$1537 -> 4310.954064 | AD126: 0.1256436663
A127: 2020-04-17T17:00:00 | B127: 2 | C127: Valle d'Aosta | D127: 108 | E127: 9 | F127: 117 | G127: 374 | H127: 491 | I127: -27 | J127: 22 | K127: 379 | L127: 123 | M127: 993 | N127: 4366 | P127: =IF(Q127="x2",M127,P126) -> 921 | Q127: =IF(M127>P126*2,"x2",P126) -> 921 | R127: =IF(Q127="x2",M127,"") ->  | T127: =M127*100/M1600 -> 0.5758725077 | U127: =IF(J127-J126=0,"",J127-J126) -> 9 | V127: =IF(K127-K126=0,"",K127-K126) -> 48 | W127: =IF(L127-L126=0,"",L127-L126) -> 1 | X127: =IF(M127-M126=0,"",M127-M126) -> 22 | Y127: =IF(N127-N126=0,"",N127-N126) -> 207 | Z127: =IF(M127=0,0,H127/M127) -> 0.4944612286 | AA127: =IF(M127=0,0,K127/M127) -> 0.3816717019 | AB127: =IF(M127=0,0,L127/M127) -> 0.1238670695 | AC127: =L127*100/B$1537 -> 4346.289753 | AD127: 0.1238670695
A128: 2020-04-18T17:00:00 | B128: 2 | C128: Valle d'Aosta | D128: 107 | E128: 10 | F128: 117 | G128: 432 | H128: 549 | I128: 58 | J128: 80 | K128: 400 | L128: 124 | M128: 1073 | N128: 4521 | P128: =IF(Q128="x2",M128,P127) -> 921 | Q128: =IF(M128>P127*2,"x2",P127) -> 921 | R128: =IF(Q128="x2",M128,"") ->  | T128: =M128*100/M1601 -> 0.6099189996 | U128: =IF(J128-J127=0,"",J128-J127) -> 58 | V128: =IF(K128-K127=0,"",K128-K127) -> 21 | W128: =IF(L128-L127=0,"",L128-L127) -> 1 | X128: =IF(M128-M127=0,"",M128-M127) -> 80 | Y128: =IF(N128-N127=0,"",N128-N127) -> 155 | Z128: =IF(M128=0,0,H128/M128) -> 0.5116495806 | AA128: =IF(M128=0,0,K128/M128) -> 0.3727865797 | AB128: =IF(M128=0,0,L128/M128) -> 0.1155638397 | AC128: =L128*100/B$1537 -> 4381.625442 | AD128: 0.1155638397
A129: 2020-04-19T17:00:00 | B129: 2 | C129: Valle d'Aosta | D129: 102 | E129: 10 | F129: 112 | G129: 450 | H129: 562 | I129: 13 | J129: 15 | K129: 401 | L129: 125 | M129: 1088 | N129: 4677 | O129: 3802 | P129: =IF(Q129="x2",M129,P128) -> 921 | Q129: =IF(M129>P128*2,"x2",P128) -> 921 | R129: =IF(Q129="x2",M129,"") ->  | T129: =M129*100/M1602 -> 0.6079163221 | U129: =IF(J129-J128=0,"",J129-J128) -> -65 | V129: =IF(K129-K128=0,"",K129-K128) -> 1 | W129: =IF(L129-L128=0,"",L129-L128) -> 1 | X129: =IF(M129-M128=0,"",M129-M128) -> 15 | Y129: =IF(N129-N128=0,"",N129-N128) -> 156 | Z129: =IF(M129=0,0,H129/M129) -> 0.5165441176 | AA129: =IF(M129=0,0,K129/M129) -> 0.3685661765 | AB129: =IF(M129=0,0,L129/M129) -> 0.1148897059 | AC129: =L129*100/B$1537 -> 4416.961131 | AD129: 0.1148897059
A130: 2020-04-20T17:00:00 | B130: 2 | C130: Valle d'Aosta | D130: 102 | E130: 8 | F130: 110 | G130: 438 | H130: 548 | I130: -14 | J130: 0 | K130: 413 | L130: 127 | M130: 1088 | N130: 4799 | O130: 3910 | P130: =IF(Q130="x2",M130,P129) -> 921 | Q130: =IF(M130>P129*2,"x2",P129) -> 921 | R130: =IF(Q130="x2",M130,"") ->  | T130: =M130*100/M1603 -> 0.600348732 | U130: =IF(J130-J129=0,"",J130-J129) -> -15 | V130: =IF(K130-K129=0,"",K130-K129) -> 12 | W130: =IF(L130-L129=0,"",L130-L129) -> 2 | X130: =IF(M130-M129=0,"",M130-M129) ->  | Y130: =IF(N130-N129=0,"",N130-N129) -> 122 | Z130: =IF(M130=0,0,H130/M130) -> 0.5036764706 | AA130: =IF(M130=0,0,K130/M130) -> 0.3795955882 | AB130: =IF(M130=0,0,L130/M130) -> 0.1167279412 | AC130: =L130*100/B$1537 -> 4487.632509 | AD130: 0.1167279412
A131: 2020-04-21T17:00:00 | B131: 2 | C131: Valle d'Aosta | D131: 99 | E131: 8 | F131: 107 | G131: 415 | H131: 522 | I131: -26 | J131: 5 | K131: 445 | L131: 126 | M131: 1093 | N131: 4911 | O131: 3969 | P131: 921 | Q131: =IF(M131>P130*2,"x2",P130) -> 921 | R131: =IF(Q131="x2",M131,"") ->  | T131: =M131*100/M1604 -> 0.5941605919 | U131: =IF(J131-J130=0,"",J131-J130) -> 5 | V131: =IF(K131-K130=0,"",K131-K130) -> 32 | W131: =IF(L131-L130=0,"",L131-L130) -> -1 | X131: =IF(M131-M130=0,"",M131-M130) -> 5 | Y131: =IF(N131-N130=0,"",N131-N130) -> 112 | Z131: =IF(M131=0,0,H131/M131) -> 0.4775846295 | AA131: =IF(M131=0,0,K131/M131) -> 0.407136322 | AB131: =IF(M131=0,0,L131/M131) -> 0.1152790485 | AC131: =L131*100/B$1537 -> 4452.29682 | AD131: 0.1152790485
A132: 2020-04-22T17:00:00 | B132: 2 | C132: Valle d'Aosta | D132: 92 | E132: 8 | F132: 100 | G132: 401 | H132: 501 | I132: -21 | J132: 2 | K132: 467 | L132: 127 | M132: 1095 | N132: 5024 | O132: 4011 | P132: 921 | Q132: =IF(M132>P131*2,"x2",P131) -> 921 | R132: =IF(Q132="x2",M132,"") ->  | T132: =M132*100/M1605 -> 0.584539335 | U132: =IF(J132-J131=0,"",J132-J131) -> -3 | V132: =IF(K132-K131=0,"",K132-K131) -> 22 | W132: =IF(L132-L131=0,"",L132-L131) -> 1 | X132: =IF(M132-M131=0,"",M132-M131) -> 2 | Y132: =IF(N132-N131=0,"",N132-N131) -> 113 | Z132: =IF(M132=0,0,H132/M132) -> 0.4575342466 | AA132: =IF(M132=0,0,K132/M132) -> 0.4264840183 | AB132: =IF(M132=0,0,L132/M132) -> 0.1159817352 | AC132: =L132*100/B$1537 -> 4487.632509 | AD132: 0.1159817352
A133: 2020-04-23T17:00:00 | B133: 2 | C133: Valle d'Aosta | D133: 91 | E133: 9 | F133: 100 | G133: 363 | H133: 463 | I133: -38 | J133: 1 | K133: 506 | L133: 127 | M133: 1096 | N133: 5227 | O133: 4133 | P133: =IF(Q133="x2",M133,P132) -> 921 | Q133: =IF(M133>P132*2,"x2",P132) -> 921 | R133: =IF(Q133="x2",M133,"") ->  | T133: =M133*100/M1606 -> 0.5769240892 | U133: =IF(J133-J132=0,"",J133-J132) -> -1 | V133: =IF(K133-K132=0,"",K133-K132) -> 39 | W133: =IF(L133-L132=0,"",L133-L132) ->  | X133: =IF(M133-M132=0,"",M133-M132) -> 1 | Y133: =IF(N133-N132=0,"",N133-N132) -> 203 | Z133: =IF(M133=0,0,H133/M133) -> 0.4224452555 | AA133: =IF(M133=0,0,K133/M133) -> 0.4616788321 | AB133: =IF(M133=0,0,L133/M133) -> 0.1158759124 | AC133: =L133*100/B$1537 -> 4487.632509 | AD133: =IF(M133=0,0,L133/M133) -> 0.1158759124
A134: 2020-04-24T17:00:00 | B134: 2 | C134: Valle d'Aosta | D134: 88 | E134: 7 | F134: 95 | G134: 259 | H134: 354 | I134: -109 | J134: 4 | K134: 617 | L134: 129 | M134: 1100 | N134: 5262 | O134: 4454 | P134: =IF(Q134="x2",M134,P133) -> 921 | Q134: =IF(M134>P133*2,"x2",P133) -> 921 | R134: =IF(Q134="x2",M134,"") ->  | T134: =M134*100/M1607 -> 0.5699659057 | U134: =IF(J134-J133=0,"",J134-J133) -> 3 | V134: =IF(K134-K133=0,"",K134-K133) -> 111 | W134: =IF(L134-L133=0,"",L134-L133) -> 2 | X134: =IF(M134-M133=0,"",M134-M133) -> 4 | Y134: =IF(N134-N133=0,"",N134-N133) -> 35 | Z134: =IF(M134=0,0,H134/M134) -> 0.3218181818 | AA134: =IF(M134=0,0,K134/M134) -> 0.5609090909 | AB134: =IF(M134=0,0,L134/M134) -> 0.1172727273 | AC134: =L134*100/B$1537 -> 4558.303887 | AD134: =IF(M134=0,0,L134/M134) -> 0.1172727273
A135: 2020-04-25T17:00:00 | B135: 2 | C135: Valle d'Aosta | D135: 83 | E135: 6 | F135: 89 | G135: 224 | H135: 313 | I135: -41 | J135: 0 | K135: 657 | L135: 130 | M135: 1100 | N135: 5966 | O135: 4694 | P135: =IF(Q135="x2",M135,P134) -> 921 | Q135: =IF(M135>P134*2,"x2",P134) -> 921 | R135: =IF(Q135="x2",M135,"") ->  | T135: =M135*100/M1608 -> 0.5630890039 | U135: =IF(J135-J134=0,"",J135-J134) -> -4 | V135: =IF(K135-K134=0,"",K135-K134) -> 40 | W135: =IF(L135-L134=0,"",L135-L134) -> 1 | X135: =IF(M135-M134=0,"",M135-M134) ->  | Y135: =IF(N135-N134=0,"",N135-N134) -> 704 | Z135: =IF(M135=0,0,H135/M135) -> 0.2845454545 | AA135: =IF(M135=0,0,K135/M135) -> 0.5972727273 | AB135: =IF(M135=0,0,L135/M135) -> 0.1181818182 | AC135: =L135*100/B$1537 -> 4593.639576 | AD135: =IF(M135=0,0,L135/M135) -> 0.1181818182
A136: 2020-04-26T17:00:00 | B136: 2 | C136: Valle d'Aosta | D136: 82 | E136: 7 | F136: 89 | G136: 165 | H136: 254 | I136: -59 | J136: 6 | K136: 721 | L136: 131 | M136: 1106 | N136: 6135 | O136: 4624 | P136: =IF(Q136="x2",M136,P135) -> 921 | Q136: =IF(M136>P135*2,"x2",P135) -> 921 | R136: =IF(Q136="x2",M136,"") ->  | T136: =M136*100/M1609 -> 0.5595042368 | U136: =IF(J136-J135=0,"",J136-J135) -> 6 | V136: =IF(K136-K135=0,"",K136-K135) -> 64 | W136: =IF(L136-L135=0,"",L136-L135) -> 1 | X136: =IF(M136-M135=0,"",M136-M135) -> 6 | Y136: =IF(N136-N135=0,"",N136-N135) -> 169 | Z136: =IF(M136=0,0,H136/M136) -> 0.2296564195 | AA136: =IF(M136=0,0,K136/M136) -> 0.6518987342 | AB136: =IF(M136=0,0,L136/M136) -> 0.1184448463 | AC136: =L136*100/B$1537 -> 4628.975265 | AD136: =IF(M136=0,0,L136/M136) -> 0.1184448463
A137: 2020-04-27T17:00:00 | B137: 2 | C137: Valle d'Aosta | D137: 86 | E137: 7 | F137: 93 | G137: 142 | H137: 235 | I137: -19 | J137: 5 | K137: 743 | L137: 133 | M137: 1111 | N137: 6551 | O137: 4873 | P137: =IF(Q137="x2",M137,P136) -> 921 | Q137: =IF(M137>P136*2,"x2",P136) -> 921 | R137: =IF(Q137="x2",M137,"") ->  | T137: =M137*100/M1610 -> 0.5571323979 | U137: =IF(J137-J136=0,"",J137-J136) -> -1 | V137: =IF(K137-K136=0,"",K137-K136) -> 22 | W137: =IF(L137-L136=0,"",L137-L136) -> 2 | X137: =IF(M137-M136=0,"",M137-M136) -> 5 | Y137: =IF(N137-N136=0,"",N137-N136) -> 416 | Z137: =IF(M137=0,0,H137/M137) -> 0.2115211521 | AA137: =IF(M137=0,0,K137/M137) -> 0.6687668767 | AB137: =IF(M137=0,0,L137/M137) -> 0.1197119712 | AC137: =L137*100/B$1537 -> 4699.646643 | AD137: =IF(M137=0,0,L137/M137) -> 0.1197119712
A138: =A137 + 1 -> 2020-04-28T17:00:00 | Q138: Media x2 | R138: =COUNT(N74:N137) / COUNT(R74:R137) -> 7.111111111
A139: =A138+1 -> 2020-04-29T17:00:00
A140: =A139+1 -> 2020-04-30T17:00:00
E141: =E137/$M137 -> 0.006300630063 | H141: =H137/$M137 -> 0.2115211521 | K141: =K137/$M137 -> 0.6687668767 | L141: =L137/$M137 -> 0.1197119712 | N141: =N137/$M137 -> 5.896489649
A145: Data | B145: Codice | C145: Regione | D145: Ricoverati | E145: Terap. Intens. | F145: Ospedalizzati | G145: Quarantena | H145: Positivi | I145: + Positivi | J145: Nuovi | K145: Guariti | L145: Deceduti | M145: Totale | N145: Tamponi | O145: Testati | R145: x 2 | T145: % su Tot. | U145: + Nuovi | V145: + Guariti | W145: + Deceduti | X145: + Totali | Y145: + Tamponi | Z145: % Positivi | AA145: % Guariti | AB145: % Deceduti | AC145: P. Stimati | AD145: % Morti
A146: 2020-02-24T18:00:00 | B146: 3 | C146: Lombardia | D146: 76 | E146: 19 | F146: 95 | G146: 71 | H146: 166 | I146: 0 | J146: 166 | K146: 0 | L146: 6 | M146: 172 | N146: 1463 | P146: =M146 -> 172 | R146: =M146 -> 172 | T146: =M146*100/M1547 -> 75.10917031 | Z146: =IF(M146=0,0,H146/M146) -> 0.9651162791 | AA146: =IF(M146=0,0,K146/M146) -> 0 | AB146: =IF(M146=0,0,L146/M146) -> 0.03488372093 | AC146: =L146*100/B$1537 -> 212.0141343 | AD146: =IF(M146=0,0,L146/M146) -> 0.03488372093
A147: 2020-02-25T18:00:00 | B147: 3 | C147: Lombardia | D147: 79 | E147: 25 | F147: 104 | G147: 127 | H147: 231 | I147: 65 | J147: 65 | K147: 0 | L147: 9 | M147: 240 | N147: 3700 | P147: =IF(Q147="x2",M147,P146) -> 172 | Q147: =IF(M147>P146*2,"x2",P146) -> 172 | R147: =IF(Q147="x2",M147,"") ->  | T147: =M147*100/M1548 -> 74.53416149 | U147: =IF(J147-J146=0,"",J147-J146) -> -101 | V147: =IF(K147-K146=0,"",K147-K146) ->  | W147: =IF(L147-L146=0,"",L147-L146) -> 3 | X147: =IF(M147-M146=0,"",M147-M146) -> 68 | Y147: =IF(N147-N146=0,"",N147-N146) -> 2237 | Z147: 0.9625 | AA147: 0 | AB147: 0.0375 | AC147: =L147*100/B$1537 -> 318.0212014 | AD147: 0.0375
A148: 2020-02-26T18:00:00 | B148: 3 | C148: Lombardia | D148: 79 | E148: 25 | F148: 104 | G148: 145 | H148: 249 | I148: 18 | J148: 18 | K148: 0 | L148: 9 | M148: 258 | N148: 3208 | P148: 172 | Q148: 172 | T148: =M148*100/M1549 -> 64.5 | U148: -47 | X148: 18 | Y148: -492 | Z148: 0.9651162791 | AA148: 0 | AB148: 0.03488372093 | AC148: =L148*100/B$1537 -> 318.0212014 | AD148: 0.03488372093
A149: 2020-02-27T18:00:00 | B149: 3 | C149: Lombardia | D149: 172 | E149: 41 | F149: 213 | G149: 136 | H149: 349 | I149: 100 | J149: 100 | K149: 40 | L149: 14 | M149: 403 | N149: 3320 | P149: 403 | Q149: x2 | R149: 403 | T149: =M149*100/M1550 -> 62 | U149: 82 | V149: 40 | W149: 5 | X149: 145 | Y149: 112 | Z149: 0.8660049628 | AA149: 0.09925558313 | AB149: 0.03473945409 | AC149: =L149*100/B$1537 -> 494.6996466 | AD149: 0.03473945409
A150: 2020-02-28T18:00:00 | B150: 3 | C150: Lombardia | D150: 235 | E150: 47 | F150: 282 | G150: 192 | H150: 474 | I150: 125 | J150: 125 | K150: 40 | L150: 17 | M150: 531 | N150: 4835 | P150: 403 | Q150: 403 | T150: =M150*100/M1551 -> 59.7972973 | U150: 25 | W150: 3 | X150: 128 | Y150: 1515 | Z150: 0.8926553672 | AA150: 0.07532956685 | AB150: 0.03201506591 | AC150: =L150*100/B$1537 -> 600.7067138 | AD150: 0.03201506591
A151: 2020-02-29T17:00:00 | B151: 3 | C151: Lombardia | D151: 256 | E151: 80 | F151: 336 | G151: 216 | H151: 552 | I151: 78 | J151: 78 | K151: 40 | L151: 23 | M151: 615 | N151: 5723 | P151: 403 | Q151: 403 | T151: =M151*100/M1552 -> 54.5212766 | U151: -47 | W151: 6 | X151: 84 | Y151: 888 | Z151: 0.8975609756 | AA151: 0.06504065041 | AB151: 0.03739837398 | AC151: =L151*100/B$1537 -> 812.7208481 | AD151: 0.03739837398
A152: 2020-03-01T17:00:00 | B152: 3 | C152: Lombardia | D152: 406 | E152: 106 | F152: 512 | G152: 375 | H152: 887 | I152: 335 | J152: 335 | K152: 73 | L152: 24 | M152: 984 | N152: 6879 | P152: 984 | Q152: x2 | R152: 984 | T152: =M152*100/M1553 -> 58.08736718 | U152: 257 | V152: 33 | W152: 1 | X152: 369 | Y152: 1156 | Z152: 0.9014227642 | AA152: 0.07418699187 | AB152: 0.0243902439 | AC152: =L152*100/B$1537 -> 848.0565371 | AD152: 0.0243902439
A153: 2020-03-02T18:00:00 | B153: 3 | C153: Lombardia | D153: 478 | E153: 127 | F153: 605 | G153: 472 | H153: 1077 | I153: 190 | J153: 190 | K153: 139 | L153: 38 | M153: 1254 | N153: 7925 | P153: 984 | Q153: 984 | T153: =M153*100/M1554 -> 61.5913556 | U153: -145 | V153: 66 | W153: 14 | X153: 270 | Y153: 1046 | Z153: 0.8588516746 | AA153: 0.1108452951 | AB153: 0.0303030303 | AC153: =L153*100/B$1537 -> 1342.756184 | AD153: 0.0303030303
A154: 2020-03-03T18:00:00 | B154: 3 | C154: Lombardia | D154: 698 | E154: 167 | F154: 865 | G154: 461 | H154: 1326 | I154: 249 | J154: 249 | K154: 139 | L154: 55 | M154: 1520 | N154: 9577 | P154: 984 | Q154: 984 | T154: =M154*100/M1555 -> 60.75139888 | U154: 59 | W154: 17 | X154: 266 | Y154: 1652 | Z154: 0.8723684211 | AA154: 0.09144736842 | AB154: 0.03618421053 | AC154: =L154*100/B$1537 -> 1943.462898 | AD154: 0.03618421053
A155: 2020-03-04T17:00:00 | B155: 3 | C155: Lombardia | D155: 877 | E155: 209 | F155: 1086 | G155: 411 | H155: 1497 | I155: 171 | J155: 171 | K155: 250 | L155: 73 | M155: 1820 | N155: 12138 | P155: 984 | Q155: 984 | T155: =M155*100/M1556 -> 58.91874393 | U155: -78 | V155: 111 | W155: 18 | X155: 300 | Y155: 2561 | Z155: 0.8225274725 | AA155: 0.1373626374 | AB155: 0.04010989011 | AC155: =L155*100/B$1537 -> 2579.5053 | AD155: 0.04010989011
A156: 2020-03-05T17:00:00 | B156: 3 | C156: Lombardia | D156: 1169 | E156: 244 | F156: 1413 | G156: 364 | H156: 1777 | I156: 280 | J156: 280 | K156: 376 | L156: 98 | M156: 2251 | N156: 12354 | P156: 2251 | Q156: x2 | R156: 2251 | T156: =M156*100/M1557 -> 58.34629342 | U156: 109 | V156: 126 | W156: 25 | X156: 431 | Y156: 216 | Z156: 0.7894269214 | AA156: 0.1670368725 | AB156: 0.04353620613 | AC156: =L156*100/B$1537 -> 3462.897527 | AD156: 0.04353620613
A157: 2020-03-06T17:00:00 | B157: 3 | C157: Lombardia | D157: 1622 | E157: 309 | F157: 1931 | G157: 77 | H157: 2008 | I157: 231 | J157: 231 | K157: 469 | L157: 135 | M157: 2612 | N157: 13556 | P157: 2251 | Q157: 2251 | T157: =M157*100/M1558 -> 56.34167386 | U157: -49 | V157: 93 | W157: 37 | X157: 361 | Y157: 1202 | Z157: 0.7687595712 | AA157: 0.1795558959 | AB157: 0.05168453292 | AC157: =L157*100/B$1537 -> 4770.318021 | AD157: 0.05168453292
A158: 2020-03-07T18:00:00 | B158: 3 | C158: Lombardia | D158: 1661 | E158: 359 | F158: 2020 | G158: 722 | H158: 2742 | I158: 734 | J158: 734 | K158: 524 | L158: 154 | M158: 3420 | N158: 15778 | P158: 2251 | Q158: 2251 | T158: =M158*100/M1559 -> 58.1336053 | U158: 503 | V158: 55 | W158: 19 | X158: 808 | Y158: 2222 | Z158: 0.801754386 | AA158: 0.1532163743 | AB158: 0.04502923977 | AC158: =L158*100/B$1537 -> 5441.696113 | AD158: 0.04502923977
A159: 2020-03-08T18:00:00 | B159: 3 | C159: Lombardia | D159: 2217 | E159: 399 | F159: 2616 | G159: 756 | H159: 3372 | I159: 630 | J159: 630 | K159: 550 | L159: 267 | M159: 4189 | N159: 18534 | P159: 2251 | Q159: 2251 | T159: =M159*100/M1560 -> 56.8 | U159: -104 | V159: 26 | W159: 113 | X159: 769 | Y159: 2756 | Z159: 0.8049653855 | AA159: 0.1312962521 | AB159: 0.06373836238 | AC159: =L159*100/B$1537 -> 9434.628975 | AD159: 0.06373836238
A160: 2020-03-09T18:00:00 | B160: 3 | C160: Lombardia | D160: 2802 | E160: 440 | F160: 3242 | G160: 1248 | H160: 4490 | I160: 1118 | J160: 1118 | K160: 646 | L160: 333 | M160: 5469 | N160: 20135 | P160: 5469 | Q160: x2 | R160: 5469 | T160: =M160*100/M1561 -> 59.62712604 | U160: 488 | V160: 96 | W160: 66 | X160: 1280 | Y160: 1601 | Z160: 0.8209910404 | AA160: 0.1181203145 | AB160: 0.06088864509 | AC160: =L160*100/B$1537 -> 11766.78445 | AD160: 0.06088864509
A161: 2020-03-10T18:00:00 | B161: 3 | C161: Lombardia | D161: 3319 | E161: 466 | F161: 3785 | G161: 642 | H161: 4427 | I161: -63 | J161: -63 | K161: 896 | L161: 468 | M161: 5791 | N161: 21479 | P161: 5469 | Q161: 5469 | T161: =M161*100/M1562 -> 57.05980885 | U161: -1181 | V161: 250 | W161: 135 | X161: 322 | Y161: 1344 | Z161: 0.7644620964 | AA161: 0.1547228458 | AB161: 0.08081505785 | AC161: =L161*100/B$1537 -> 16537.10247 | AD161: 0.08081505785
A162: 2020-03-11T17:00:00 | B162: 3 | C162: Lombardia | D162: 3852 | E162: 560 | F162: 4412 | G162: 1351 | H162: 5763 | I162: 1336 | J162: 1336 | K162: 900 | L162: 617 | M162: 7280 | N162: 25629 | P162: 5469 | Q162: 5469 | T162: =M162*100/M1563 -> 58.41758947 | U162: 1399 | V162: 4 | W162: 149 | X162: 1489 | Y162: 4150 | Z162: 0.7916208791 | AA162: 0.1236263736 | AB162: 0.08475274725 | AC162: =L162*100/B$1537 -> 21802.12014 | AD162: 0.08475274725
A163: 2020-03-12T17:00:00 | B163: 3 | C163: Lombardia | D163: 4247 | E163: 605 | F163: 4852 | G163: 2044 | H163: 6896 | I163: 1133 | J163: 1133 | K163: 1085 | L163: 744 | M163: 8725 | N163: 29534 | P163: 5469 | Q163: 5469 | T163: =M163*100/M1564 -> 57.73175412 | U163: -203 | V163: 185 | W163: 127 | X163: 1445 | Y163: 3905 | Z163: 0.7903724928 | AA163: 0.1243553009 | AB163: 0.0852722063 | AC163: =L163*100/B$1537 -> 26289.75265 | AD163: 0.0852722063
A164: 2020-03-13T17:00:00 | B164: 3 | C164: Lombardia | D164: 4435 | E164: 650 | F164: 5085 | G164: 2647 | H164: 7732 | I164: 836 | J164: 836 | K164: 1198 | L164: 890 | M164: 9820 | N164: 32700 | P164: 5469 | Q164: 5469 | T164: =M164*100/M1565 -> 55.60588901 | U164: -297 | V164: 113 | W164: 146 | X164: 1095 | Y164: 3166 | Z164: 0.7873727088 | AA164: 0.1219959267 | AB164: 0.09063136456 | AC164: =L164*100/B$1537 -> 31448.76325 | AD164: 0.09063136456
A165: 2020-03-14T17:00:00 | B165: 3 | C165: Lombardia | D165: 4898 | E165: 732 | F165: 5630 | G165: 3429 | H165: 9059 | I165: 1327 | J165: 1327 | K165: 1660 | L165: 966 | M165: 11685 | N165: 37138 | P165: 11685 | Q165: x2 | R165: 11685 | T165: =M165*100/M1566 -> 55.22994754 | U165: 491 | V165: 462 | W165: 76 | X165: 1865 | Y165: 4438 | Z165: 0.7752674369 | AA165: 0.1420624733 | AB165: 0.08267008986 | AC165: =L165*100/B$1537 -> 34134.27562 | AD165: 0.08267008986
A166: 2020-03-15T17:00:00 | B166: 3 | C166: Lombardia | D166: 5500 | E166: 767 | F166: 6267 | G166: 3776 | H166: 10043 | I166: 984 | J166: 984 | K166: 2011 | L166: 1218 | M166: 13272 | N166: 40369 | P166: 11685 | Q166: 11685 | T166: =M166*100/M1567 -> 53.63074312 | U166: -343 | V166: 351 | W166: 252 | X166: 1587 | Y166: 3231 | Z166: 0.7567058469 | AA166: 0.1515220012 | AB166: 0.0917721519 | AC166: =L166*100/B$1537 -> 43038.86926 | AD166: 0.0917721519
A167: 2020-03-16T17:00:00 | B167: 3 | C167: Lombardia | D167: 6171 | E167: 823 | F167: 6994 | G167: 3867 | H167: 10861 | I167: 818 | J167: 818 | K167: 2368 | L167: 1420 | M167: 14649 | N167: 43565 | P167: 11685 | Q167: 11685 | T167: =M167*100/M1568 -> 52.35525375 | U167: -166 | V167: 357 | W167: 202 | X167: 1377 | Y167: 3196 | Z167: 0.7414157963 | AA167: 0.1616492593 | AB167: 0.09693494436 | AC167: =L167*100/B$1537 -> 50176.67845 | AD167: 0.09693494436
A168: 2020-03-17T17:00:00 | B168: 3 | C168: Lombardia | D168: 6953 | E168: 879 | F168: 7832 | G168: 4263 | H168: 12095 | I168: 1234 | J168: 1234 | K168: 2485 | L168: 1640 | M168: 16220 | N168: 46449 | P168: 11685 | Q168: 11685 | T168: =M168*100/M1569 -> 51.48225735 | U168: 416 | V168: 117 | W168: 220 | X168: 1571 | Y168: 2884 | Z168: 0.7456843403 | AA168: 0.1532059186 | AB168: 0.1011097411 | AC168: =L168*100/B$1537 -> 57950.53004 | AD168: 0.1011097411
A169: 2020-03-18T17:00:00 | B169: 3 | C169: Lombardia | D169: 7285 | E169: 924 | F169: 8209 | G169: 4057 | H169: 12266 | I169: 171 | J169: 171 | K169: 3488 | L169: 1959 | M169: 17713 | N169: 48983 | P169: 11685 | Q169: 11685 | T169: =M169*100/M1570 -> 49.59818553 | U169: -1063 | V169: 1003 | W169: 319 | X169: 1493 | Y169: 2534 | Z169: 0.6924857449 | AA169: 0.1969175182 | AB169: 0.1105967369 | AC169: =L169*100/B$1537 -> 69222.61484 | AD169: 0.1105967369
A170: 2020-03-19T17:00:00 | B170: 3 | C170: Lombardia | D170: 7387 | E170: 1006 | F170: 8393 | G170: 5545 | H170: 13938 | I170: 1672 | J170: 1672 | K170: 3778 | L170: 2168 | M170: 19884 | N170: 52244 | P170: 11685 | Q170: 11685 | T170: =M170*100/M1571 -> 48.45619593 | U170: 1501 | V170: 290 | W170: 209 | X170: 2171 | Y170: 3261 | Z170: 0.7009656005 | AA170: 0.1900020117 | AB170: 0.1090323878 | AC170: =L170*100/B$1537 -> 76607.77385 | AD170: 0.1090323878
A171: 2020-03-20T17:00:00 | B171: 3 | C171: Lombardia | D171: 7735 | E171: 1050 | F171: 8785 | G171: 6635 | H171: 15420 | I171: 1482 | J171: 1482 | K171: 4295 | L171: 2549 | M171: 22264 | N171: 57174 | P171: 11685 | Q171: 11685 | T171: =M171*100/M1572 -> 47.3490568 | U171: -190 | V171: 517 | W171: 381 | X171: 2380 | Y171: 4930 | Z171: 0.6925979159 | AA171: 0.1929123248 | AB171: 0.1144897593 | AC171: =L171*100/B$1537 -> 90070.67138 | AD171: 0.1144897593
A172: 2020-03-21T17:00:00 | B172: 3 | C172: Lombardia | D172: 8258 | E172: 1093 | F172: 9351 | G172: 8019 | H172: 17370 | I172: 1950 | J172: 1950 | K172: 5050 | L172: 3095 | M172: 25515 | N172: 66730 | P172: 25515 | Q172: x2 | R172: 25515 | T172: =M172*100/M1573 -> 47.62215835 | U172: 468 | V172: 755 | W172: 546 | X172: 3251 | Y172: 9556 | Z172: 0.6807760141 | AA172: 0.1979227905 | AB172: 0.1213011954 | AC172: =L172*100/B$1537 -> 109363.9576 | AD172: 0.1213011954
A173: 2020-03-22T17:00:00 | B173: 3 | C173: Lombardia | D173: 9439 | E173: 1142 | F173: 10581 | G173: 7304 | H173: 17885 | I173: 515 | J173: 515 | K173: 5865 | L173: 3456 | M173: 27206 | N173: 70598 | P173: 25515 | Q173: 25515 | T173: =M173*100/M1574 -> 46.00426122 | U173: -1435 | V173: 815 | W173: 361 | X173: 1691 | Y173: 3868 | Z173: 0.6573917518 | AA173: 0.2155774462 | AB173: 0.127030802 | AC173: =L173*100/B$1537 -> 122120.1413 | AD173: 0.127030802
A174: 2020-03-23T17:00:00 | B174: 3 | C174: Lombardia | D174: 9266 | E174: 1183 | F174: 10449 | G174: 8461 | H174: 18910 | I174: 1025 | J174: 1025 | K174: 6075 | L174: 3776 | M174: 28761 | N174: 73242 | P174: 25515 | Q174: 25515 | T174: =M174*100/M1575 -> 44.99037965 | U174: 510 | V174: 210 | W174: 320 | X174: 1555 | Y174: 2644 | Z174: 0.65748757 | AA174: 0.2112235319 | AB174: 0.1312888982 | AC174: =L174*100/B$1537 -> 133427.5618 | AD174: 0.1312888982
A175: 2020-03-24T17:00:00 | B175: 3 | C175: Lombardia | D175: 9711 | E175: 1194 | F175: 10905 | G175: 8963 | H175: 19868 | I175: 958 | J175: 958 | K175: 6657 | L175: 4178 | M175: 30703 | N175: 76695 | P175: 25515 | Q175: 25515 | T175: =M175*100/M1576 -> 44.38389037 | U175: -67 | V175: 582 | W175: 402 | X175: 1942 | Y175: 3453 | Z175: 0.647102889 | AA175: 0.2168192033 | AB175: 0.1360779077 | AC175: =L175*100/B$1537 -> 147632.5088 | AD175: 0.1360779077
A176: 2020-03-25T17:00:00 | B176: 3 | C176: Lombardia | D176: 10026 | E176: 1236 | F176: 11262 | G176: 9329 | H176: 20591 | I176: 723 | J176: 723 | K176: 7281 | L176: 4474 | M176: 32346 | N176: 81666 | P176: 25515 | Q176: 25515 | T176: =M176*100/M1577 -> 43.48398892 | U176: -235 | V176: 624 | W176: 296 | X176: 1643 | Y176: 4971 | Z176: 0.6365856675 | AA176: 0.2250973845 | AB176: 0.138316948 | AC176: =L176*100/B$1537 -> 158091.8728 | AD176: 0.138316948
A177: 2020-03-26T17:00:00 | B177: 3 | C177: Lombardia | D177: 10681 | E177: 1263 | F177: 11944 | G177: 10245 | H177: 22189 | I177: 1598 | J177: 1598 | K177: 7839 | L177: 4861 | M177: 34889 | N177: 87713 | P177: 25515 | Q177: 25515 | T177: =M177*100/M1578 -> 43.31938564 | U177: 875 | V177: 558 | W177: 387 | X177: 2543 | Y177: 6047 | Z177: 0.6359884204 | AA177: 0.2246839978 | AB177: 0.1393275818 | AC177: =L177*100/B$1537 -> 171766.7845 | AD177: 0.1393275818
A178: 2020-03-27T17:00:00 | B178: 3 | C178: Lombardia | D178: 11137 | E178: 1292 | F178: 12429 | G178: 11466 | H178: 23895 | I178: 1706 | J178: 2409 | K178: 8001 | L178: 5402 | M178: 37298 | N178: 95860 | P178: 25515 | Q178: 25515 | T178: =M178*100/M1579 -> 43.12007214 | U178: 811 | V178: 162 | W178: 541 | X178: 2409 | Y178: 8147 | Z178: =IF(M178=0,0,H178/M178) -> 0.6406509732 | AA178: =IF(M178=0,0,K178/M178) -> 0.2145155236 | AB178: =IF(M178=0,0,L178/M178) -> 0.1448335031 | AC178: =L178*100/B$1537 -> 190883.3922 | AD178: 0.1448335031
A179: 2020-03-28T17:00:00 | B179: 3 | C179: Lombardia | D179: 11152 | E179: 1319 | F179: 12471 | G179: 12038 | H179: 24509 | I179: 614 | J179: 2117 | K179: 8962 | L179: 5944 | M179: 39415 | N179: 102503 | P179: =IF(Q179="x2",M179,P178) -> 25515 | Q179: =IF(M179>P178*2,"x2",P178) -> 25515 | R179: =IF(Q179="x2",M179,"") ->  | T179: =M179*100/M1580 -> 42.62371312 | U179: =IF(J179-J178=0,"",J179-J178) -> -292 | V179: =IF(K179-K178=0,"",K179-K178) -> 961 | W179: =IF(L179-L178=0,"",L179-L178) -> 542 | X179: =IF(M179-M178=0,"",M179-M178) -> 2117 | Y179: =IF(N179-N178=0,"",N179-N178) -> 6643 | Z179: 0.6218191044 | AA179: 0.2273753647 | AB179: 0.1508055309 | AC179: =L179*100/B$1537 -> 210035.3357 | AD179: 0.1508055309
A180: 2020-03-29T17:00:00 | B180: 3 | C180: Lombardia | D180: 11613 | E180: 1328 | F180: 12941 | G180: 12451 | H180: 25392 | I180: 883 | J180: 1592 | K180: 9255 | L180: 6360 | M180: 41007 | N180: 107398 | P180: 25515 | Q180: 25515 | T180: =M180*100/M1581 -> 41.97709056 | U180: -525 | V180: 293 | W180: 416 | X180: 1592 | Y180: 4895 | Z180: 0.6192113542 | AA180: 0.2256931743 | AB180: 0.1550954715 | AC180: =L180*100/B$1537 -> 224734.9823 | AD180: 0.1550954715
A181: 2020-03-30T17:00:00 | B181: 3 | C181: Lombardia | D181: 11815 | E181: 1330 | F181: 13145 | G181: 11861 | H181: 25006 | I181: -386 | J181: 1154 | K181: 10337 | L181: 6818 | M181: 42161 | N181: 111057 | P181: 25515 | Q181: 25515 | T181: =M181*100/M1582 -> 41.44035227 | U181: -438 | V181: 1082 | W181: 458 | X181: 1154 | Y181: 3659 | Z181: 0.5931073741 | AA181: 0.245179194 | AB181: 0.1617134318 | AC181: =L181*100/B$1537 -> 240918.7279 | AD181: 0.1617134318
A182: 2020-03-31T17:00:00 | B182: 3 | C182: Lombardia | D182: 11883 | E182: 1324 | F182: 13207 | G182: 11917 | H182: 25124 | I182: 118 | J182: 1047 | K182: 10885 | L182: 7199 | M182: 43208 | N182: 114640 | P182: 25515 | Q182: 25515 | T182: =M182*100/M1583 -> 40.84240774 | U182: -107 | V182: 548 | W182: 381 | X182: 1047 | Y182: 3583 | Z182: 0.5814663951 | AA182: 0.2519209406 | AB182: 0.1666126643 | AC182: =L182*100/B$1537 -> 254381.6254 | AD182: 0.1666126643
A183: 2020-04-01T17:00:00 | B183: 3 | C183: Lombardia | D183: 11927 | E183: 1342 | F183: 13269 | G183: 12496 | H183: 25765 | I183: 641 | J183: 1565 | K183: 11415 | L183: 7593 | M183: 44773 | N183: 121449 | P183: 25515 | Q183: 25515 | T183: =M183*100/M1584 -> 40.4914356 | U183: 518 | V183: 530 | W183: 394 | X183: 1565 | Y183: 6809 | Z183: 0.5754584236 | AA183: 0.2549527617 | AB183: 0.1695888147 | AC183: =L183*100/B$1537 -> 268303.8869 | AD183: 0.1695888147
A184: 2020-04-02T17:00:00 | B184: 3 | C184: Lombardia | D184: 11762 | E184: 1351 | F184: 13113 | G184: 12763 | H184: 25876 | I184: 111 | J184: 1292 | K184: 12229 | L184: 7960 | M184: 46065 | N184: 128286 | P184: 25515 | Q184: 25515 | T184: =M184*100/M1585 -> 39.97240589 | U184: -273 | V184: 814 | W184: 367 | X184: 1292 | Y184: 6837 | Z184: 0.5617279931 | AA184: 0.2654727016 | AB184: 0.1727993053 | AC184: =L184*100/B$1537 -> 281272.0848 | AD184: 0.1727993053
A185: 2020-04-03T17:00:00 | B185: 3 | C185: Lombardia | D185: 11802 | E185: 1381 | F185: 13183 | G185: 13006 | H185: 26189 | I185: 313 | J185: 1455 | K185: 13020 | L185: 8311 | M185: 47520 | N185: 135051 | P185: 25515 | Q185: 25515 | T185: =M185*100/M1586 -> 39.65717242 | U185: 163 | V185: 791 | W185: 351 | X185: 1455 | Y185: 6765 | Z185: 0.5511153199 | AA185: 0.273989899 | AB185: 0.1748947811 | AC185: =L185*100/B$1537 -> 293674.9117 | AD185: 0.1748947811
A186: 2020-04-04T17:00:00 | B186: 3 | C186: Lombardia | D186: 12002 | E186: 1326 | F186: 13328 | G186: 13892 | H186: 27220 | I186: 1031 | J186: 1598 | K186: 13242 | L186: 8656 | M186: 49118 | N186: 141877 | P186: 25515 | Q186: 25515 | T186: =M186*100/M1587 -> 39.41042429 | U186: 143 | V186: 222 | W186: 345 | X186: 1598 | Y186: 6826 | Z186: 0.5541756586 | AA186: 0.2695956676 | AB186: 0.1762286738 | AC186: =L186*100/B$1537 -> 305865.7244 | AD186: 0.1762286738
A187: 2020-04-05T17:00:00 | B187: 3 | C187: Lombardia | D187: 12009 | E187: 1317 | F187: 13326 | G187: 14798 | H187: 28124 | I187: 904 | J187: 1337 | K187: 13426 | L187: 8905 | M187: 50455 | N187: 149984 | P187: 25515 | Q187: 25515 | T187: =M187*100/M1588 -> 39.1281757 | U187: -261 | V187: 184 | W187: 249 | X187: 1337 | Y187: 8107 | Z187: 0.5574075909 | AA187: 0.2660985036 | AB187: 0.1764939055 | AC187: =L187*100/B$1537 -> 314664.311 | AD187: 0.1764939055
A188: 2020-04-06T17:00:00 | B188: 3 | C188: Lombardia | D188: 11914 | E188: 1343 | F188: 13257 | G188: 15212 | H188: 28469 | I188: 345 | J188: 1079 | K188: 13863 | L188: 9202 | M188: 51534 | N188: 154989 | P188: 51534 | Q188: x2 | R188: 51534 | T188: =M188*100/M1589 -> 38.87979358 | U188: -258 | V188: 437 | W188: 297 | X188: 1079 | Y188: 5005 | Z188: 0.5524314045 | AA188: 0.2690068693 | AB188: 0.1785617262 | AC188: =L188*100/B$1537 -> 325159.0106 | AD188: 0.1785617262
A189: 2020-04-07T17:00:00 | B189: 3 | C189: Lombardia | D189: 11833 | E189: 1305 | F189: 13138 | G189: 15205 | H189: 28343 | I189: -126 | J189: 791 | K189: 14498 | L189: 9484 | M189: 52325 | N189: 159331 | P189: 51534 | Q189: 51534 | T189: =M189*100/M1590 -> 38.59174251 | U189: -288 | V189: 635 | W189: 282 | X189: 791 | Y189: 4342 | Z189: 0.5416722408 | AA189: 0.2770759675 | AB189: 0.1812517917 | AC189: =L189*100/B$1537 -> 335123.6749 | AD189: 0.1812517917
A190: 2020-04-08T17:00:00 | B190: 3 | C190: Lombardia | D190: 11719 | E190: 1257 | F190: 12976 | G190: 15569 | H190: 28545 | I190: 202 | J190: 1089 | K190: 15147 | L190: 9722 | M190: 53414 | N190: 167557 | P190: 51534 | Q190: 51534 | T190: =M190*100/M1591 -> 38.31102695 | U190: 298 | V190: 649 | W190: 238 | X190: 1089 | Y190: 8226 | Z190: 0.5344104542 | AA190: 0.2835773393 | AB190: 0.1820122065 | AC190: =L190*100/B$1537 -> 343533.5689 | AD190: 0.1820122065
A191: 2020-04-09T17:00:00 | B191: 3 | C191: Lombardia | D191: 11796 | E191: 1236 | F191: 13032 | G191: 16042 | H191: 29074 | I191: 529 | J191: 1388 | K191: 15706 | L191: 10022 | M191: 54802 | N191: 176953 | P191: 51534 | Q191: 51534 | T191: =M191*100/M1592 -> 38.15604417 | U191: 299 | V191: 559 | W191: 300 | X191: 1388 | Y191: 9396 | Z191: 0.5305280829 | AA191: 0.2865953797 | AB191: 0.1828765374 | AC191: =L191*100/B$1537 -> 354134.2756 | AD191: 0.1828765374
A192: 2020-04-10T17:00:00 | B192: 3 | C192: Lombardia | D192: 11877 | E192: 1202 | F192: 13079 | G192: 16451 | H192: 29530 | I192: 456 | J192: 1246 | K192: 16280 | L192: 10238 | M192: 56048 | N192: 186325 | P192: 51534 | Q192: 51534 | T192: =M192*100/M1593 -> 37.97881784 | U192: -142 | V192: 574 | W192: 216 | X192: 1246 | Y192: 9372 | Z192: 0.5268698259 | AA192: 0.2904653154 | AB192: 0.1826648587 | AC192: =L192*100/B$1537 -> 361766.7845 | AD192: 0.1826648587
A193: 2020-04-11T17:00:00 | B193: 3 | C193: Lombardia | D193: 12026 | E193: 1174 | F193: 13200 | G193: 17058 | H193: 30258 | I193: 728 | J193: 1544 | K193: 16823 | L193: 10511 | M193: 57592 | N193: 196302 | P193: 51534 | Q193: 51534 | T193: =M193*100/M1594 -> 37.82204097 | U193: 298 | V193: 543 | W193: 273 | X193: 1544 | Y193: 9977 | Z193: 0.5253854702 | AA193: 0.2921065426 | AB193: 0.1825079872 | AC193: =L193*100/B$1537 -> 371413.4276 | AD193: 0.1825079872
A194: 2020-04-12T17:00:00 | B194: 3 | C194: Lombardia | D194: 11969 | E194: 1176 | F194: 13145 | G194: 18120 | H194: 31265 | I194: 1007 | J194: 1460 | K194: 17166 | L194: 10621 | M194: 59052 | N194: 205832 | P194: 51534 | Q194: 51534 | T194: =M194*100/M1595 -> 37.76596765 | U194: -84 | V194: 343 | W194: 110 | X194: 1460 | Y194: 9530 | Z194: 0.5294486216 | AA194: 0.2906929486 | AB194: 0.1798584299 | AC194: =L194*100/B$1537 -> 375300.3534 | AD194: 0.1798584299
A195: 2020-04-13T17:00:00 | B195: 3 | C195: Lombardia | D195: 12028 | E195: 1143 | F195: 13171 | G195: 18764 | H195: 31935 | I195: 670 | J195: 1262 | K195: 17478 | L195: 10901 | M195: 60314 | N195: 211092 | P195: 51534 | Q195: 51534 | T195: =M195*100/M1596 -> 37.81062715 | U195: -198 | V195: 312 | W195: 280 | X195: 1262 | Y195: 5260 | Z195: 0.5294790596 | AA195: 0.2897834665 | AB195: 0.1807374739 | AC195: =L195*100/B$1537 -> 385194.3463 | AD195: 0.1807374739
A196: 2020-04-14T17:00:00 | B196: 3 | C196: Lombardia | D196: 12077 | E196: 1122 | F196: 13199 | G196: 19164 | H196: 32363 | I196: 428 | J196: 1012 | K196: 17821 | L196: 11142 | M196: 61326 | N196: 214870 | P196: 51534 | Q196: 51534 | T196: =M196*100/M1597 -> 37.74186401 | U196: -250 | V196: 343 | W196: 241 | X196: 1012 | Y196: 3778 | Z196: 0.5277207057 | AA196: 0.2905945276 | AB196: 0.1816847667 | AC196: =L196*100/B$1537 -> 393710.2473 | AD196: 0.1816847667
A197: 2020-04-15T17:00:00 | B197: 3 | C197: Lombardia | D197: 12043 | E197: 1074 | F197: 13117 | G197: 19804 | H197: 32921 | I197: 558 | J197: 827 | K197: 17855 | L197: 11377 | M197: 62153 | N197: 221968 | P197: 51534 | Q197: 51534 | T197: =M197*100/M1598 -> 37.63313251 | U197: -185 | V197: 34 | W197: 235 | X197: 827 | Y197: 7098 | Z197: 0.5296767654 | AA197: 0.2872749505 | AB197: 0.1830482841 | AC197: =L197*100/B$1537 -> 402014.1343 | AD197: 0.1830482841
A198: 2020-04-16T17:00:00 | B198: 3 | C198: Lombardia | D198: 11356 | E198: 1032 | F198: 12388 | G198: 20702 | H198: 33090 | I198: 169 | J198: 941 | K198: 18396 | L198: 11608 | M198: 63094 | N198: 232674 | P198: 51534 | Q198: 51534 | T198: =M198*100/M1599 -> 37.34676603 | U198: 114 | V198: 541 | W198: 231 | X198: 941 | Y198: 10706 | Z198: 0.5244555742 | AA198: 0.2915649666 | AB198: 0.1839794592 | AC198: =L198*100/B$1537 -> 410176.6784 | AD198: 0.1839794592
A199: 2020-04-17T17:00:00 | B199: 3 | C199: Lombardia | D199: 10627 | E199: 971 | F199: 11598 | G199: 21836 | H199: 33434 | I199: 344 | J199: 1041 | K199: 18850 | L199: 11851 | M199: 64135 | N199: 243513 | P199: =IF(Q199="x2",M199,P198) -> 51534 | Q199: =IF(M199>P198*2,"x2",P198) -> 51534 | R199: =IF(Q199="x2",M199,"") ->  | T199: =M199*100/M1600 -> 37.19394087 | U199: =IF(J199-J198=0,"",J199-J198) -> 100 | V199: =IF(K199-K198=0,"",K199-K198) -> 454 | W199: =IF(L199-L198=0,"",L199-L198) -> 243 | X199: =IF(M199-M198=0,"",M199-M198) -> 1041 | Y199: =IF(N199-N198=0,"",N199-N198) -> 10839 | Z199: =IF(M199=0,0,H199/M199) -> 0.5213066189 | AA199: =IF(M199=0,0,K199/M199) -> 0.2939112809 | AB199: =IF(M199=0,0,L199/M199) -> 0.1847821003 | AC199: =L199*100/B$1537 -> 418763.2509 | AD199: 0.1847821003
A200: 2020-04-18T17:00:00 | B200: 3 | C200: Lombardia | D200: 10042 | E200: 947 | F200: 10989 | G200: 23206 | H200: 34195 | I200: 761 | J200: 1246 | K200: 19136 | L200: 12050 | M200: 65381 | N200: 255331 | P200: =IF(Q200="x2",M200,P199) -> 51534 | Q200: =IF(M200>P199*2,"x2",P199) -> 51534 | R200: =IF(Q200="x2",M200,"") ->  | T200: =M200*100/M1601 -> 37.16413244 | U200: =IF(J200-J199=0,"",J200-J199) -> 205 | V200: =IF(K200-K199=0,"",K200-K199) -> 286 | W200: =IF(L200-L199=0,"",L200-L199) -> 199 | X200: =IF(M200-M199=0,"",M200-M199) -> 1246 | Y200: =IF(N200-N199=0,"",N200-N199) -> 11818 | Z200: =IF(M200=0,0,H200/M200) -> 0.5230112724 | AA200: =IF(M200=0,0,K200/M200) -> 0.292684419 | AB200: =IF(M200=0,0,L200/M200) -> 0.1843043086 | AC200: =L200*100/B$1537 -> 425795.053 | AD200: 0.1843043086
A201: 2020-04-19T17:00:00 | B201: 3 | C201: Lombardia | D201: 10342 | E201: 922 | F201: 11264 | G201: 23233 | H201: 34497 | I201: 302 | J201: 855 | K201: 19526 | L201: 12213 | M201: 66236 | N201: 264155 | O201: 183757 | P201: =IF(Q201="x2",M201,P200) -> 51534 | Q201: =IF(M201>P200*2,"x2",P200) -> 51534 | R201: =IF(Q201="x2",M201,"") ->  | T201: =M201*100/M1602 -> 37.00914109 | U201: =IF(J201-J200=0,"",J201-J200) -> -391 | V201: =IF(K201-K200=0,"",K201-K200) -> 390 | W201: =IF(L201-L200=0,"",L201-L200) -> 163 | X201: =IF(M201-M200=0,"",M201-M200) -> 855 | Y201: =IF(N201-N200=0,"",N201-N200) -> 8824 | Z201: =IF(M201=0,0,H201/M201) -> 0.5208194939 | AA201: =IF(M201=0,0,K201/M201) -> 0.2947943716 | AB201: =IF(M201=0,0,L201/M201) -> 0.1843861344 | AC201: =L201*100/B$1537 -> 431554.7703 | AD201: 0.1843861344
A202: 2020-04-20T17:00:00 | B202: 3 | C202: Lombardia | D202: 10138 | E202: 901 | F202: 11039 | G202: 23548 | H202: 34587 | I202: 90 | J202: 735 | K202: 20008 | L202: 12376 | M202: 66971 | N202: 270486 | O202: 173333 | P202: =IF(Q202="x2",M202,P201) -> 51534 | Q202: =IF(M202>P201*2,"x2",P201) -> 51534 | R202: =IF(Q202="x2",M202,"") ->  | T202: =M202*100/M1603 -> 36.95400269 | U202: =IF(J202-J201=0,"",J202-J201) -> -120 | V202: =IF(K202-K201=0,"",K202-K201) -> 482 | W202: =IF(L202-L201=0,"",L202-L201) -> 163 | X202: =IF(M202-M201=0,"",M202-M201) -> 735 | Y202: =IF(N202-N201=0,"",N202-N201) -> 6331 | Z202: =IF(M202=0,0,H202/M202) -> 0.5164474175 | AA202: =IF(M202=0,0,K202/M202) -> 0.298756178 | AB202: =IF(M202=0,0,L202/M202) -> 0.1847964044 | AC202: =L202*100/B$1537 -> 437314.4876 | AD202: 0.1847964044
A203: 2020-04-21T17:00:00 | B203: 3 | C203: Lombardia | D203: 9805 | E203: 851 | F203: 10656 | G203: 23322 | H203: 33978 | I203: -609 | J203: 960 | K203: 21374 | L203: 12579 | M203: 67931 | N203: 277197 | O203: 173333 | P203: 51534 | Q203: =IF(M203>P202*2,"x2",P202) -> 51534 | R203: =IF(Q203="x2",M203,"") ->  | T203: =M203*100/M1604 -> 36.92765157 | U203: =IF(J203-J202=0,"",J203-J202) -> 225 | V203: =IF(K203-K202=0,"",K203-K202) -> 1366 | W203: =IF(L203-L202=0,"",L203-L202) -> 203 | X203: =IF(M203-M202=0,"",M203-M202) -> 960 | Y203: =IF(N203-N202=0,"",N203-N202) -> 6711 | Z203: =IF(M203=0,0,H203/M203) -> 0.5001840102 | AA203: =IF(M203=0,0,K203/M203) -> 0.3146427993 | AB203: =IF(M203=0,0,L203/M203) -> 0.1851731904 | AC203: =L203*100/B$1537 -> 444487.6325 | AD203: 0.1851731904
A204: 2020-04-22T17:00:00 | B204: 3 | C204: Lombardia | D204: 9692 | E204: 817 | F204: 10509 | G204: 23733 | H204: 34242 | I204: 264 | J204: 1161 | K204: 22110 | L204: 12740 | M204: 69092 | N204: 290699 | O204: 184323 | P204: 51534 | Q204: =IF(M204>P203*2,"x2",P203) -> 51534 | R204: =IF(Q204="x2",M204,"") ->  | T204: =M204*100/M1605 -> 36.88309747 | U204: =IF(J204-J203=0,"",J204-J203) -> 201 | V204: =IF(K204-K203=0,"",K204-K203) -> 736 | W204: =IF(L204-L203=0,"",L204-L203) -> 161 | X204: =IF(M204-M203=0,"",M204-M203) -> 1161 | Y204: =IF(N204-N203=0,"",N204-N203) -> 13502 | Z204: =IF(M204=0,0,H204/M204) -> 0.4956000695 | AA204: =IF(M204=0,0,K204/M204) -> 0.3200081051 | AB204: =IF(M204=0,0,L204/M204) -> 0.1843918254 | AC204: =L204*100/B$1537 -> 450176.6784 | AD204: 0.1843918254
A205: 2020-04-23T17:00:00 | B205: 3 | C205: Lombardia | D205: 9192 | E205: 790 | F205: 9982 | G205: 23891 | H205: 33873 | I205: -369 | J205: 1073 | K205: 23352 | L205: 12940 | M205: 70165 | N205: 302715 | O205: 190451 | P205: =IF(Q205="x2",M205,P204) -> 51534 | Q205: =IF(M205>P204*2,"x2",P204) -> 51534 | R205: =IF(Q205="x2",M205,"") ->  | T205: =M205*100/M1606 -> 36.93419591 | U205: =IF(J205-J204=0,"",J205-J204) -> -88 | V205: =IF(K205-K204=0,"",K205-K204) -> 1242 | W205: =IF(L205-L204=0,"",L205-L204) -> 200 | X205: =IF(M205-M204=0,"",M205-M204) -> 1073 | Y205: =IF(N205-N204=0,"",N205-N204) -> 12016 | Z205: =IF(M205=0,0,H205/M205) -> 0.4827620609 | AA205: =IF(M205=0,0,K205/M205) -> 0.3328155063 | AB205: =IF(M205=0,0,L205/M205) -> 0.1844224328 | AC205: =L205*100/B$1537 -> 457243.8163 | AD205: =IF(M205=0,0,L205/M205) -> 0.1844224328
A206: 2020-04-24T17:00:00 | B206: 3 | C206: Lombardia | D206: 8791 | E206: 756 | F206: 9547 | G206: 24821 | H206: 34368 | I206: 495 | J206: 1091 | K206: 23782 | L206: 13106 | M206: 71256 | N206: 314298 | O206: 196406 | P206: =IF(Q206="x2",M206,P205) -> 51534 | Q206: =IF(M206>P205*2,"x2",P205) -> 51534 | R206: =IF(Q206="x2",M206,"") ->  | T206: =M206*100/M1607 -> 36.92135507 | U206: =IF(J206-J205=0,"",J206-J205) -> 18 | V206: =IF(K206-K205=0,"",K206-K205) -> 430 | W206: =IF(L206-L205=0,"",L206-L205) -> 166 | X206: =IF(M206-M205=0,"",M206-M205) -> 1091 | Y206: =IF(N206-N205=0,"",N206-N205) -> 11583 | Z206: =IF(M206=0,0,H206/M206) -> 0.4823172785 | AA206: =IF(M206=0,0,K206/M206) -> 0.3337543505 | AB206: =IF(M206=0,0,L206/M206) -> 0.1839283709 | AC206: =L206*100/B$1537 -> 463109.5406 | AD206: =IF(M206=0,0,L206/M206) -> 0.1839283709
... 1343 more rows

Sheet Dati
A1: data | B1: codice_regione | C1: denominazione_regione | D1: ricoverati_con_sintomi | E1: terapia_intensiva | F1: totale_ospedalizzati | G1: isolamento_domiciliare | H1: totale_positivi | I1: variazione_totale_positivi | J1: nuovi_positivi | K1: dimessi_guariti | L1: deceduti | M1: totale_casi | N1: tamponi | O1: casi_testati
A2: 2020-04-27T17:00:00 | B2: 1 | C2: Piemonte | D2: 2830 | E2: 214 | F2: 3044 | G2: 12464 | H2: 15508 | I2: -11 | J2: 278 | K2: 6712 | L2: 2878 | M2: 25098 | N2: 139348 | O2: 99144
A3: 2020-04-27T17:00:00 | B3: 2 | C3: Valle d'Aosta | D3: 86 | E3: 7 | F3: 93 | G3: 142 | H3: 235 | I3: -19 | J3: 5 | K3: 743 | L3: 133 | M3: 1111 | N3: 6551 | O3: 4873
A4: 2020-04-27T17:00:00 | B4: 3 | C4: Lombardia | D4: 7525 | E4: 680 | F4: 8205 | G4: 27236 | H4: 35441 | I4: 275 | J4: 590 | K4: 24589 | L4: 13449 | M4: 73479 | N4: 342850 | O4: 211523
A5: 2020-04-27T17:00:00 | B5: 4 | C5: P.A. Bolzano | D5: 150 | E5: 16 | F5: 166 | G5: 774 | H5: 940 | I5: -54 | J5: 15 | K5: 1286 | L5: 270 | M5: 2496 | N5: 38640 | O5: 18423
A6: 2020-04-27T17:00:00 | B6: 4 | C6: P.A. Trento | D6: 201 | E6: 23 | F6: 224 | G6: 1483 | H6: 1707 | I6: 25 | J6: 101 | K6: 1881 | L6: 407 | M6: 3995 | N6: 33152 | O6: 20199
A7: 2020-04-27T17:00:00 | B7: 5 | C7: Veneto | D7: 1099 | E7: 123 | F7: 1222 | G7: 7638 | H7: 8860 | I7: -278 | J7: 108 | K7: 7375 | L7: 1344 | M7: 17579 | N7: 320027 | O7: 192751
A8: 2020-04-27T17:00:00 | B8: 6 | C8: Friuli Venezia Giulia | D8: 130 | E8: 13 | F8: 143 | G8: 1115 | H8: 1258 | I8: 10 | J8: 60 | K8: 1448 | L8: 271 | M8: 2977 | N8: 60940 | O8: 39330
A9: 2020-04-27T17:00:00 | B9: 7 | C9: Liguria | D9: 754 | E9: 83 | F9: 837 | G9: 2743 | H9: 3580 | I9: 100 | J9: 154 | K9: 2934 | L9: 1128 | M9: 7642 | N9: 44039 | O9: 28739
A10: 2020-04-27T17:00:00 | B10: 8 | C10: Emilia-Romagna | D10: 2640 | E10: 247 | F10: 2887 | G10: 9338 | H10: 12225 | I10: -116 | J10: 212 | K10: 9006 | L10: 3431 | M10: 24662 | N10: 164979 | O10: 111041
A11: 2020-04-27T17:00:00 | B11: 9 | C11: Toscana | D11: 671 | E11: 154 | F11: 825 | G11: 5158 | H11: 5983 | I11: -86 | J11: 32 | K11: 2401 | L11: 795 | M11: 9179 | N11: 129048 | O11: 100869
A12: 2020-04-27T17:00:00 | B12: 10 | C12: Umbria | D12: 90 | E12: 16 | F12: 106 | G12: 181 | H12: 287 | I12: -9 | J12: 2 | K12: 1018 | L12: 65 | M12: 1370 | N12: 32823 | O12: 22492
A13: 2020-04-27T17:00:00 | B13: 11 | C13: Marche | D13: 667 | E13: 58 | F13: 725 | G13: 2585 | H13: 3310 | I13: 2 | J13: 16 | K13: 1933 | L13: 884 | M13: 6127 | N13: 52765 | O13: 35617
A14: 2020-04-27T17:00:00 | B14: 12 | C14: Lazio | D14: 1464 | E14: 143 | F14: 1607 | G14: 2955 | H14: 4562 | I14: -11 | J14: 83 | K14: 1433 | L14: 397 | M14: 6392 | N14: 124769 | O14: 95719
A15: 2020-04-27T17:00:00 | B15: 13 | C15: Abruzzo | D15: 328 | E15: 23 | F15: 351 | G15: 1679 | H15: 2030 | I15: -38 | J15: 15 | K15: 545 | L15: 299 | M15: 2874 | N15: 34176 | O15: 26443
A16: 2020-04-27T17:00:00 | B16: 14 | C16: Molise | D16: 20 | E16: 1 | F16: 21 | G16: 179 | H16: 200 | I16: 0 | J16: 0 | K16: 75 | L16: 21 | M16: 296 | N16: 5656 | O16: 5423
A17: 2020-04-27T17:00:00 | B17: 15 | C17: Campania | D17: 541 | E17: 37 | F17: 578 | G17: 2299 | H17: 2877 | I17: -47 | J17: 18 | K17: 1120 | L17: 352 | M17: 4349 | N17: 68727 | O17: 42463
A18: 2020-04-27T17:00:00 | B18: 16 | C18: Puglia | D18: 449 | E18: 51 | F18: 500 | G18: 2412 | H18: 2912 | I18: -25 | J18: 10 | K18: 641 | L18: 405 | M18: 3958 | N18: 56976 | O18: 55897
A19: 2020-04-27T17:00:00 | B19: 17 | C19: Basilicata | D19: 57 | E19: 7 | F19: 64 | G19: 153 | H19: 217 | I19: -2 | J19: 0 | K19: 124 | L19: 25 | M19: 366 | N19: 10364 | O19: 10364
A20: 2020-04-27T17:00:00 | B20: 18 | C20: Calabria | D20: 114 | E20: 6 | F20: 120 | G20: 662 | H20: 782 | I20: -15 | J20: 7 | K20: 231 | L20: 83 | M20: 1096 | N20: 31787 | O20: 29834
A21: 2020-04-27T17:00:00 | B21: 19 | C21: Sicilia | D21: 440 | E21: 35 | F21: 475 | G21: 1648 | H21: 2123 | I21: 16 | J21: 30 | K21: 731 | L21: 231 | M21: 3085 | N21: 70650 | O21: 66749
A22: 2020-04-27T17:00:00 | B22: 20 | C22: Sardegna | D22: 97 | E22: 19 | F22: 116 | G22: 660 | H22: 776 | I22: -7 | J22: 3 | K22: 398 | L22: 109 | M22: 1283 | N22: 21395 | O22: 19424
